{"text_format":"1","workbook":"xlsx","n_sheets":14,"sheets":["Basics_PS","Integers_PS","Equation_PS","Bearings_PS","Scales_PS","Perimeter_PS","Area_PS","Basic_Cal","Integers","Solving_Equations","Length","Perimeter","Area","Scales"],"not_rendered":{"charts":2,"images":0,"macros":1,"external_links":0,"defined_names":7,"comments":0,"pivot_tables":0},"unopened":[],"bounds":{"document_bytes":16777216,"sheet_cells":100000,"rows_first":2000,"rows_last":500,"rows_between":2000,"halvings":0,"cell_chars":16384,"cell_head_chars":4096},"cells_cut":0,"cells_raw":0,"read":"whole","date_system":"1900"}

{"sheet":"Basics_PS","index":0,"n_rows":16,"n_cols":35,"rows_kept":16,"cut":false,"hidden":false,"merged":[[2,1,2,2],[14,2,14,3],[14,29,14,30],[14,31,14,32],[8,15,8,22],[9,14,10,24],[2,31,2,32],[2,27,2,28]]}
[]
[]
[null,{"$f":"ROUND(RAND()*(9-(2))+(2),0)*10","v":90},null,"x",null,"=",{"$f":"B3*M3","v":2133},null,null,null,null,null,{"$f":"ROUND(RAND()*(30-(11))+(11),1)","v":23.7},null,null,null,null,null,null,null,null,null,null,null,null,null,{"$f":"AB3/100*AF3","v":75},{"$f":"ROUND(RAND()*(19-(1))+(1),0)*5","v":15},null,"%","of",{"$f":"ROUND(RAND()*(40-(11))+(11),0)*20","v":500},null,"="]
[]
[]
[]
[]
[]
[]
[null,null,null,null,null,null,null,null,null,null,null,null,null,null,"Basic Calculations"]
[]
[]
[]
[]
[null,null,"÷",null,{"$f":"ROUND(RAND()*(9-(2))+(2),0)*10","v":40},"=",{"$f":"ROUND(RAND()*(50-(11))+(11),0)","v":28},null,null,null,null,null,{"$f":"G15*E15","v":1120},"Find the missing numbers",null,null,null,null,null,null,null,null,null,null,null,null,{"$f":"ROUND(RAND()*(80-(11))+(11),0)*AC16","v":200},null,{"$f":"ROUND(RAND()*(8-(2))+(2),0)","v":3},"of",null,null,null,"=",{"$f":"AC15*AA15/AC16","v":150}]
[null,null,null,null,null,null,null,null,null,null,null,null,null,null,null,null,null,null,null,null,null,null,null,null,null,null,null,null,{"$f":"AC15+1","v":4}]

{"sheet":"Integers_PS","index":1,"n_rows":15,"n_cols":39,"rows_kept":15,"cut":false,"hidden":false,"merged":[[14,3,14,4],[14,34,14,35],[2,34,2,35],[8,16,8,23],[11,18,11,22]]}
[]
[]
[null,null,null,{"$f":"ROUND(RAND()*((-3)-(-30))+(-30),0)","v":-13},"+",null,"=",{"$f":"D3+N3","v":-43},null,null,null,null,null,{"$f":"ROUND(RAND()*((-3)-(-30))+(-30),0)","v":-30},null,null,null,null,null,null,null,null,null,null,null,null,null,{"$f":"ROUND(RAND()*((9)-(2))+(2),0)*10","v":80},null,null,null,null,null,{"$f":"ROUND(RAND()*((-2)-(-9))+(-9),0)*10","v":-60},"-",null,null,"=",{"$f":"AH3-AB3","v":-140}]
[]
[]
[]
[]
[]
[]
[null,null,null,null,null,null,null,null,null,null,null,null,null,null,null,"Find the missing numbers"]
[null,null,null,null,null,null,null,null,null,null,null,null,null,null,null,"Think THERMOMETER !"]
[]
[]
[]
[null,null,null,"+",null,{"$f":"ROUND(RAND()*(20-(-20))+(-20),0)","v":9},"=",{"$f":"N15+F15","v":13},null,null,null,null,null,{"$f":"ROUND(RAND()*(20-(-20))+(-20),0)","v":4},null,null,null,null,null,null,null,null,null,null,null,null,null,{"$f":"ROUND(RAND()*(90-(9))+(9),0)","v":22},null,null,null,null,null,{"$f":"ROUND(RAND()*(-9-(-90))+(-90),0)","v":-61},"-",null,null,"=",{"$f":"AH15-AB15","v":-83}]

{"sheet":"Equation_PS","index":2,"n_rows":15,"n_cols":39,"rows_kept":15,"cut":false,"hidden":false,"merged":[[10,16,10,23],[11,18,11,22],[8,16,8,23],[9,15,9,25]]}
[]
[]
[null,null,null,{"$f":"CHAR(RAND()*(122-113)+113)","v":"w"},"-",null,"=",{"$f":"S12-N3","v":-4},null,null,null,null,null,{"$f":"ROUND(RAND()*(19-(5))+(5),0)","v":12},null,null,null,null,null,null,null,null,null,null,null,null,null,{"$f":"AH3*S12","v":160},null,null,null,null,null,{"$f":"ROUND(RAND()*((9)-(2))+(2),0)*10","v":20},{"$f":"CHAR(RAND()*(105-97)+97)","v":"h"},"="]
[]
[]
[]
[]
[]
[]
[null,null,null,null,null,null,null,null,null,null,null,null,null,null,null,"The solution to each"]
[null,null,null,null,null,null,null,null,null,null,null,null,null,null,null,null,"equation is"]
[null,null,null,null,null,null,null,null,null,null,null,null,null,null,null,null,null,null,{"$f":"ROUND(RAND()*(12-2)+2,0)","v":8}]
[]
[]
[null,null,null,{"$f":"CHAR(RAND()*(122-113)+113)","v":"q"},"+",{"$f":"ROUND(RAND()*(10-(2))+(2),0)","v":8},"=",{"$f":"N15*S12+F15","v":136},null,null,null,null,null,{"$f":"ROUND(RAND()*(19-(5))+(5),0)","v":16},"Find the missing numbers",null,null,null,null,null,null,null,null,null,null,null,null,{"$f":"ROUND(RAND()*(10-(1))+(1),0)","v":5},null,null,null,null,null,{"$f":"ROUND(RAND()*(3-(2))+(2),0)","v":2},{"$f":"CHAR(RAND()*(105-97)+97)","v":"g"},"-",null,"=",{"$f":"AH15*S12-AB15","v":11}]

{"sheet":"Bearings_PS","index":3,"n_rows":13,"n_cols":13,"rows_kept":13,"cut":false,"hidden":false,"merged":[[4,10,5,11]]}
[]
[]
[null,null,null,null,null,null,null,null,"What is my bearings"]
[]
[null,null,null,null,null,null,null,null,null,null,null,null,"O"]
[]
[]
[]
[]
[null,null,null,null,null,null,null,null,null,null,{"$f":"ROUND(RAND()*(72-1)+1,0)*5","v":120}]
[null,null,null,null,null,null,null,null,null,null,{"$f":"360-K10","v":240}]
[null,null,null,null,null,null,null,null,null,null,null,{"$f":"IF(K10<100,0,\"\")","v":""}]
[null,null,null,null,null,null,null,null,null,null,{"$f":"CONCATENATE(L12,K10)","v":"120"}]

{"sheet":"Scales_PS","index":4,"n_rows":13,"n_cols":13,"rows_kept":13,"cut":false,"hidden":false,"merged":[[4,10,5,11]]}
[]
[]
[null,null,null,null,null,null,null,null,"What is my bearings"]
[]
[null,null,null,null,null,null,null,null,null,null,null,null,"O"]
[]
[]
[]
[]
[null,null,null,null,null,null,null,null,null,null,{"$f":"ROUND(RAND()*(72-1)+1,0)*5","v":120}]
[null,null,null,null,null,null,null,null,null,null,{"$f":"360-K10","v":240}]
[null,null,null,null,null,null,null,null,null,null,null,{"$f":"IF(K10<100,0,\"\")","v":""}]
[null,null,null,null,null,null,null,null,null,null,{"$f":"CONCATENATE(L12,K10)","v":"120"}]

{"sheet":"Perimeter_PS","index":5,"n_rows":22,"n_cols":57,"rows_kept":22,"cut":false,"hidden":false,"merged":[[6,46,7,55],[1,56,5,58],[12,10,13,14],[12,15,13,16],[20,46,21,55],[15,56,19,60],[8,45,9,52],[8,53,9,55],[8,56,9,57],[12,45,13,52],[12,53,13,55],[12,56,13,57],[1,46,5,55],[15,46,19,55],[7,22,13,37],[12,2,13,9],[20,4,21,13],[15,14,19,18],[1,4,5,13],[15,4,19,13],[6,4,7,13],[1,14,5,16],[8,2,9,9],[8,10,9,12],[8,13,9,14]]}
[]
[null,null,null,null,"What's my Perimeter ?",null,null,null,null,null,null,null,null,null,{"$f":"CONCATENATE(O8,P8)","v":"13m"},null,null,null,null,null,null,null,null,null,null,null,null,null,null,null,null,null,null,null,null,null,null,null,null,null,null,{"$f":"ROUND(RAND()*(30-15)+15,0)","v":25},"cm",{"$f":"2*AP2+2*AP3","v":70},null,null,{"$f":"\"What's my breadth ?           if Perimeter = \"&AR2&\"cm\"","v":"What's my breadth ?           if Perimeter = 70cm"},null,null,null,null,null,null,null,null,null,"b cm"]
[null,null,null,null,null,null,null,null,null,null,null,null,null,null,null,null,null,null,null,null,null,null,null,null,null,null,null,null,null,null,null,null,null,null,null,null,null,null,null,null,null,{"$f":"ROUND(RAND()*(14-6)+6,0)","v":10},"cm"]
[]
[]
[]
[null,null,null,null,{"$f":"CONCATENATE(O7,P7)","v":"23m"},null,null,null,null,null,null,null,null,null,{"$f":"ROUND(RAND()*(30-15)+15,0)","v":23},"m",{"$f":"2*O7+2*O8","v":72},null,null,null,null,null,null,null,null,null,null,null,null,null,null,null,null,null,null,null,null,null,null,null,null,null,null,null,null,null,{"$f":"CONCATENATE(AP2,AQ2)","v":"25cm"}]
[null,null,null,null,null,null,null,null,null,null,null,null,null,null,{"$f":"ROUND(RAND()*(14-6)+6,0)","v":13},"m",null,null,null,null,null,null,"Do you know your Perimeter ?"]
[null,null,"Perimeter =",null,null,null,null,null,null,null,null,null,null,"m",null,null,null,null,null,null,null,null,null,null,null,null,null,null,null,null,null,null,null,null,null,null,null,null,null,null,null,null,null,null,null,"Breadth =",null,null,null,null,null,null,null,null,null,null,"cm"]
[]
[]
[]
[null,null,"Perimeter =",null,null,null,null,null,null,null,null,null,null,null,null,"m",null,null,null,null,null,null,null,null,null,null,null,null,null,null,null,null,null,null,null,null,null,null,null,null,null,null,null,null,null,"Length =",null,null,null,null,null,null,null,null,null,null,"cm"]
[]
[]
[null,null,null,null,"What's my Perimeter ?",null,null,null,null,null,null,null,null,null,{"$f":"CONCATENATE(O22,P22)","v":"19.5m"},null,null,null,null,null,null,null,null,null,null,null,null,null,null,null,null,null,null,null,null,null,null,null,null,null,null,{"$f":"ROUND(RAND()*(30-15)+15,1)","v":29.8},"cm",{"$f":"2*AP16+2*AP17","v":67.8},null,null,{"$f":"\"What's my length ?       if Perimeter = \"&AR16&\"cm\"","v":"What's my length ?       if Perimeter = 67.8cm"},null,null,null,null,null,null,null,null,null,{"$f":"CONCATENATE(AP17,AQ17)","v":"4.1cm"}]
[null,null,null,null,null,null,null,null,null,null,null,null,null,null,null,null,null,null,null,null,null,null,null,null,null,null,null,null,null,null,null,null,null,null,null,null,null,null,null,null,null,{"$f":"ROUND(RAND()*(9-3)+3,1)","v":4.0999999999999996},"cm"]
[]
[]
[]
[null,null,null,null,{"$f":"CONCATENATE(O21,P21)","v":"40.4m"},null,null,null,null,null,null,null,null,null,{"$f":"ROUND(RAND()*(60-31)+31,1)","v":40.4},"m",{"$f":"2*O21+2*O22","v":119.8},null,null,null,null,null,null,null,null,null,null,null,null,null,null,null,null,null,null,null,null,null,null,null,null,null,null,null,null,null,"L cm"]
[null,null,null,null,null,null,null,null,null,null,null,null,null,null,{"$f":"ROUND(RAND()*(25-15)+15,1)","v":19.5},"m"]

{"sheet":"Area_PS","index":6,"n_rows":22,"n_cols":57,"rows_kept":22,"cut":false,"hidden":false,"merged":[[8,15,9,16],[15,14,19,18],[15,46,19,55],[15,56,19,60],[20,4,21,13],[20,46,21,55],[8,45,9,52],[8,53,9,55],[8,56,9,57],[12,2,13,9],[12,10,13,14],[12,15,13,16],[12,45,13,52],[12,53,13,55],[12,56,13,57],[8,10,9,14],[1,4,5,13],[1,14,5,16],[1,46,5,55],[1,56,5,58],[6,4,7,13],[6,46,7,55],[7,22,13,37],[8,2,9,9]]}
[]
[null,null,null,null,"What's my Area ?",null,null,null,null,null,null,null,null,null,{"$f":"CONCATENATE(O8,P8)","v":"49m"},null,null,null,null,null,null,null,null,null,null,null,null,null,null,null,null,null,null,null,null,null,null,null,null,null,null,{"$f":"ROUND(RAND()*(9-2)+2,0)*10","v":80},"cm",{"$f":"AP2*AP3","v":320},null,null,{"$f":"\"What's my breadth ? If Area = \"&AR2&\" sq cm\"","v":"What's my breadth ? If Area = 320 sq cm"},null,null,null,null,null,null,null,null,null,"b cm"]
[null,null,null,null,null,null,null,null,null,null,null,null,null,null,null,null,null,null,null,null,null,null,null,null,null,null,null,null,null,null,null,null,null,null,null,null,null,null,null,null,null,{"$f":"ROUND(RAND()*(9-3)+3,0)","v":4},"cm"]
[]
[]
[]
[null,null,null,null,{"$f":"CONCATENATE(O7,P7)","v":"40m"},null,null,null,null,null,null,null,null,null,{"$f":"ROUND(RAND()*(9-2)+2,0)*10","v":40},"m",{"$f":"O7*O8","v":1960},null,null,null,null,null,null,null,null,null,null,null,null,null,null,null,null,null,null,null,null,null,null,null,null,null,null,null,null,null,{"$f":"CONCATENATE(AP2,AQ2)","v":"80cm"}]
[null,null,null,null,null,null,null,null,null,null,null,null,null,null,{"$f":"ROUND(RAND()*(50-11)+11,0)","v":49},"m",null,null,null,null,null,null,"Do you know your Area ?"]
[null,null,"Area =",null,null,null,null,null,null,null,null,null,null,null,null,"m2",null,null,null,null,null,null,null,null,null,null,null,null,null,null,null,null,null,null,null,null,null,null,null,null,null,null,null,null,null,"Breadth =",null,null,null,null,null,null,null,null,null,null,"cm"]
[]
[]
[]
[null,null,"Area =",null,null,null,null,null,null,null,null,null,null,null,null,"m2",null,null,null,null,null,null,null,null,null,null,null,null,null,null,null,null,null,null,null,null,null,null,null,null,null,null,null,null,null,"Length =",null,null,null,null,null,null,null,null,null,null,"cm"]
[]
[]
[null,null,null,null,null,null,null,null,null,null,null,null,null,null,{"$f":"CONCATENATE(O22,P22)","v":"32m"},null,null,null,null,null,null,null,null,null,null,null,null,null,null,null,null,null,null,null,null,null,null,null,null,null,null,{"$f":"ROUND(RAND()*(30-15)+15,1)","v":27.8},"cm",{"$f":"AP16*AP17","v":111.2},null,null,{"$f":"\"What's my length ?       If Area = \"&AR16&\" sq cm\"","v":"What's my length ?       If Area = 111.2 sq cm"},null,null,null,null,null,null,null,null,null,{"$f":"CONCATENATE(AP17,AQ17)","v":"4cm"}]
[null,null,null,null,null,null,null,null,null,null,null,null,null,null,null,null,null,null,null,null,null,null,null,null,null,null,null,null,null,null,null,null,null,null,null,null,null,null,null,null,null,{"$f":"ROUND(RAND()*(9-3)+3,0)","v":4},"cm"]
[]
[]
[]
[null,null,null,null,{"$f":"CONCATENATE(O21,P21)","v":"40m"},null,null,null,null,null,null,null,null,null,{"$f":"ROUND(RAND()*(9-2)+2,0)*10","v":40},"m",{"$f":"0.5*O21*O22","v":640},null,null,null,null,null,null,null,null,null,null,null,null,null,null,null,null,null,null,null,null,null,null,null,null,null,null,null,null,null,"L cm"]
[null,null,null,null,null,null,null,null,null,null,null,null,null,null,{"$f":"ROUND(RAND()*(50-11)+11,0)","v":32},"m"]

{"sheet":"Basic_Cal","index":7,"n_rows":41,"n_cols":50,"rows_kept":41,"cut":false,"hidden":false,"merged":[[36,6,36,7],[36,24,36,25],[36,42,36,43],[39,6,39,7],[39,24,39,25],[39,42,39,43],[36,13,36,15],[36,31,36,33],[1,47,1,53],[1,2,1,8],[1,11,1,17],[1,20,1,26],[1,29,1,35],[1,38,1,44],[9,49,9,51],[12,13,12,15],[12,31,12,33],[12,49,12,51],[3,13,3,15],[3,31,3,33],[3,49,3,51],[6,13,6,15],[6,31,6,33],[6,49,6,51],[12,21,12,22],[12,24,12,25],[12,39,12,40],[12,42,12,43],[9,31,9,33],[22,47,22,53],[15,13,15,15],[15,31,15,33],[15,49,15,51],[18,13,18,15],[18,31,18,33],[18,49,18,51],[15,24,15,25],[15,42,15,43],[18,24,18,25],[18,42,18,43],[30,49,30,51],[33,13,33,15],[33,31,33,33],[33,49,33,51],[24,13,24,15],[24,31,24,33],[24,49,24,51],[27,13,27,15],[27,31,27,33],[27,49,27,51],[33,21,33,22],[33,24,33,25],[33,39,33,40],[33,42,33,43],[36,49,36,51],[39,13,39,15],[39,31,39,33],[39,49,39,51],[6,3,6,4],[6,21,6,22],[6,39,6,40],[27,3,27,4],[27,21,27,22],[27,39,27,40],[22,2,22,8],[22,11,22,17],[22,20,22,26],[22,29,22,35],[22,38,22,44],[9,13,9,15],[12,3,12,4],[12,6,12,7],[3,6,3,7],[3,24,3,25],[3,42,3,43],[24,6,24,7],[24,24,24,25],[24,42,24,43],[9,6,9,7],[9,24,9,25],[9,42,9,43],[15,6,15,7],[18,6,18,7],[30,6,30,7],[30,24,30,25],[30,42,30,43],[33,3,33,4],[33,6,33,7],[30,13,30,15],[30,31,30,33]]}
[]
[null,null,"Basic Calculations 1",null,null,null,null,null,null,null,null,"Basic Calculations 1",null,null,null,null,null,null,null,null,"Basic Calculations 2",null,null,null,null,null,null,null,null,"Basic Calculations 2",null,null,null,null,null,null,null,null,"Basic Calculations 3",null,null,null,null,null,null,null,null,"Basic Calculations 3"]
[]
[null,null,"1)",null,{"$f":"ROUND(RAND()*(10-(3))+(3),0)","v":9},"x",{"$f":"ROUND(RAND()*(30-(11))+(11),1)","v":26.9},null,null,null,null,"1)",null,{"$f":"E4*G4","v":242.1},null,null,null,null,null,null,"1)",null,{"$f":"ROUND(RAND()*(10-(3))+(3),0)","v":5},"x",{"$f":"ROUND(RAND()*(30-(15))+(15),1)","v":15.8},null,null,null,null,"1)",null,{"$f":"W4*Y4","v":79},null,null,null,null,null,null,"1)",null,{"$f":"ROUND(RAND()*(10-(3))+(3),0)","v":5},"x",{"$f":"ROUND(RAND()*(30-(15))+(15),1)","v":26.2},null,null,null,null,"1)",null,{"$f":"AO4*AQ4","v":131}]
[]
[]
[null,null,"2)",{"$f":"ROUND(RAND()*(30-(11))+(11),1)*G7","v":82},null,"÷",{"$f":"ROUND(RAND()*(10-(3))+(3),0)","v":5},null,null,null,null,"2)",null,{"$f":"D7/G7","v":16.399999999999999},null,null,null,null,null,null,"2)",{"$f":"ROUND(RAND()*(30-(11))+(11),1)*Y7","v":192.6},null,"÷",{"$f":"ROUND(RAND()*(10-(3))+(3),0)","v":9},null,null,null,null,"2)",null,{"$f":"V7/Y7","v":21.4},null,null,null,null,null,null,"2)",{"$f":"ROUND(RAND()*(30-(11))+(11),1)*AQ7","v":119.6},null,"÷",{"$f":"ROUND(RAND()*(10-(3))+(3),0)","v":4},null,null,null,null,"2)",null,{"$f":"AN7/AQ7","v":29.9}]
[]
[]
[null,null,"3)",null,{"$f":"ROUND(RAND()*(9-(2))+(2),0)*10","v":50},"x",{"$f":"ROUND(RAND()*(30-(11))+(11),1)","v":13.5},null,null,null,null,"3)",null,{"$f":"E10*G10","v":675},null,null,null,null,null,null,"3)",null,{"$f":"ROUND(RAND()*(9-(2))+(2),0)*10","v":70},"x",{"$f":"ROUND(RAND()*(30-(11))+(11),2)","v":21.31},null,null,null,null,"3)",null,{"$f":"W10*Y10","v":1491.6999999999998},null,null,null,null,null,null,"3)",null,{"$f":"ROUND(RAND()*(9-(2))+(2),0)*10","v":60},"x",{"$f":"ROUND(RAND()*(30-(11))+(11),2)","v":23.81},null,null,null,null,"3)",null,{"$f":"AO10*AQ10","v":1428.6}]
[]
[]
[null,null,"4)",{"$f":"G13*N13","v":2700},null,"÷",{"$f":"ROUND(RAND()*(9-(3))+(3),0)*10","v":60},null,null,null,null,"4)",null,{"$f":"ROUND(RAND()*(50-(11))+(11),0)","v":45},null,null,null,null,null,null,"4)",{"$f":"Y13*AF13","v":1924},null,"÷",{"$f":"ROUND(RAND()*(9-(3))+(3),0)*10","v":40},null,null,null,null,"4)",null,{"$f":"ROUND(RAND()*(50-(11))+(11),1)","v":48.1},null,null,null,null,null,null,"4)",{"$f":"AQ13*AX13","v":3164},null,"÷",{"$f":"ROUND(RAND()*(9-(3))+(3),0)*10","v":70},null,null,null,null,"4)",null,{"$f":"ROUND(RAND()*(50-(11))+(11),1)","v":45.2}]
[]
[]
[null,null,"5)",{"$f":"ROUND(RAND()*(19-(1))+(1),0)*5","v":20},"%","of",{"$f":"ROUND(RAND()*(40-(11))+(11),0)*20","v":580},null,null,null,null,"5)",null,{"$f":"D16/100*G16","v":116},null,null,null,null,null,null,"5)",{"$f":"ROUND(RAND()*(19-(1))+(1),0)*5","v":70},"%","of",{"$f":"ROUND(RAND()*(40-(11))+(11),0)*20","v":680},null,null,null,null,"5)",null,{"$f":"V16/100*Y16","v":475.99999999999994},null,null,null,null,null,null,"5)",{"$f":"ROUND(RAND()*(19-(1))+(1),0)*5","v":15},"%","of",{"$f":"ROUND(RAND()*(40-(11))+(11),0)*20","v":420},null,null,null,null,"5)",null,{"$f":"AN16/100*AQ16","v":63}]
[]
[]
[null,null,"6)",null,{"$f":"ROUND(RAND()*(8-(2))+(2),0)","v":6},"of",{"$f":"ROUND(RAND()*(80-(11))+(11),1)*E20","v":352.8},null,null,null,null,"6)",null,{"$f":"E19*G19/E20","v":302.40000000000003},null,null,null,null,null,null,"6)",null,{"$f":"ROUND(RAND()*(8-(2))+(2),0)","v":3},"of",{"$f":"ROUND(RAND()*(80-(11))+(11),1)*W20","v":110.8},null,null,null,null,"6)",null,{"$f":"W19*Y19/W20","v":83.1},null,null,null,null,null,null,"6)",null,{"$f":"ROUND(RAND()*(8-(2))+(2),0)","v":4},"of",{"$f":"ROUND(RAND()*(80-(11))+(11),1)*AO20","v":158},null,null,null,null,"6)",null,{"$f":"AO19*AQ19/AO20","v":126.4}]
[null,null,null,null,{"$f":"E19+1","v":7},null,null,null,null,null,null,null,null,null,null,null,null,null,null,null,null,null,{"$f":"W19+1","v":4},null,null,null,null,null,null,null,null,null,null,null,null,null,null,null,null,null,{"$f":"AO19+1","v":5}]
[]
[]
[null,null,"Basic Calculations 4",null,null,null,null,null,null,null,null,"Basic Calculations 4",null,null,null,null,null,null,null,null,"Basic Calculations 5",null,null,null,null,null,null,null,null,"Basic Calculations 5",null,null,null,null,null,null,null,null,"Basic Calculations 6",null,null,null,null,null,null,null,null,"Basic Calculations 6"]
[]
[null,null,"1)",null,{"$f":"ROUND(RAND()*(10-(3))+(3),0)","v":8},"x",{"$f":"ROUND(RAND()*(30-(11))+(11),1)","v":22.9},null,null,null,null,"1)",null,{"$f":"E25*G25","v":183.2},null,null,null,null,null,null,"1)",null,{"$f":"ROUND(RAND()*(10-(3))+(3),0)","v":5},"x",{"$f":"ROUND(RAND()*(30-(15))+(15),1)","v":27.1},null,null,null,null,"1)",null,{"$f":"W25*Y25","v":135.5},null,null,null,null,null,null,"1)",null,{"$f":"ROUND(RAND()*(10-(3))+(3),0)","v":8},"x",{"$f":"ROUND(RAND()*(30-(15))+(15),1)","v":22.5},null,null,null,null,"1)",null,{"$f":"AO25*AQ25","v":180}]
[]
[]
[null,null,"2)",{"$f":"ROUND(RAND()*(30-(11))+(11),1)*G28","v":129.5},null,"÷",{"$f":"ROUND(RAND()*(10-(3))+(3),0)","v":7},null,null,null,null,"2)",null,{"$f":"D28/G28","v":18.5},null,null,null,null,null,null,"2)",{"$f":"ROUND(RAND()*(30-(11))+(11),1)*Y28","v":161},null,"÷",{"$f":"ROUND(RAND()*(10-(3))+(3),0)","v":10},null,null,null,null,"2)",null,{"$f":"V28/Y28","v":16.100000000000001},null,null,null,null,null,null,"2)",{"$f":"ROUND(RAND()*(30-(11))+(11),1)*AQ28","v":96.5},null,"÷",{"$f":"ROUND(RAND()*(10-(3))+(3),0)","v":5},null,null,null,null,"2)",null,{"$f":"AN28/AQ28","v":19.3}]
[]
[]
[null,null,"3)",null,{"$f":"ROUND(RAND()*(9-(2))+(2),0)*10","v":80},"x",{"$f":"ROUND(RAND()*(30-(11))+(11),1)","v":27.4},null,null,null,null,"3)",null,{"$f":"E31*G31","v":2192},null,null,null,null,null,null,"3)",null,{"$f":"ROUND(RAND()*(9-(2))+(2),0)*10","v":40},"x",{"$f":"ROUND(RAND()*(30-(11))+(11),2)","v":19.07},null,null,null,null,"3)",null,{"$f":"W31*Y31","v":762.8},null,null,null,null,null,null,"3)",null,{"$f":"ROUND(RAND()*(9-(2))+(2),0)*10","v":70},"x",{"$f":"ROUND(RAND()*(30-(11))+(11),2)","v":25.16},null,null,null,null,"3)",null,{"$f":"AO31*AQ31","v":1761.2}]
[]
[]
[null,null,"4)",{"$f":"G34*N34","v":1170},null,"÷",{"$f":"ROUND(RAND()*(9-(3))+(3),0)*10","v":30},null,null,null,null,"4)",null,{"$f":"ROUND(RAND()*(50-(11))+(11),0)","v":39},null,null,null,null,null,null,"4)",{"$f":"Y34*AF34","v":2664},null,"÷",{"$f":"ROUND(RAND()*(9-(3))+(3),0)*10","v":60},null,null,null,null,"4)",null,{"$f":"ROUND(RAND()*(50-(11))+(11),1)","v":44.4},null,null,null,null,null,null,"4)",{"$f":"AQ34*AX34","v":3600},null,"÷",{"$f":"ROUND(RAND()*(9-(3))+(3),0)*10","v":80},null,null,null,null,"4)",null,{"$f":"ROUND(RAND()*(50-(11))+(11),1)","v":45}]
[]
[]
[null,null,"5)",{"$f":"ROUND(RAND()*(19-(1))+(1),0)*5","v":30},"%","of",{"$f":"ROUND(RAND()*(40-(11))+(11),0)*20","v":300},null,null,null,null,"5)",null,{"$f":"D37/100*G37","v":90},null,null,null,null,null,null,"5)",{"$f":"ROUND(RAND()*(19-(1))+(1),0)*5","v":50},"%","of",{"$f":"ROUND(RAND()*(40-(11))+(11),0)*20","v":560},null,null,null,null,"5)",null,{"$f":"V37/100*Y37","v":280},null,null,null,null,null,null,"5)",{"$f":"ROUND(RAND()*(19-(1))+(1),0)*5","v":35},"%","of",{"$f":"ROUND(RAND()*(40-(11))+(11),0)*20","v":560},null,null,null,null,"5)",null,{"$f":"AN37/100*AQ37","v":196}]
[]
[]
[null,null,"6)",null,{"$f":"ROUND(RAND()*(8-(2))+(2),0)","v":6},"of",{"$f":"ROUND(RAND()*(80-(11))+(11),1)*E41","v":142.79999999999998},null,null,null,null,"6)",null,{"$f":"E40*G40/E41","v":122.39999999999999},null,null,null,null,null,null,"6)",null,{"$f":"ROUND(RAND()*(8-(2))+(2),0)","v":5},"of",{"$f":"ROUND(RAND()*(80-(11))+(11),1)*W41","v":322.20000000000005},null,null,null,null,"6)",null,{"$f":"W40*Y40/W41","v":268.50000000000006},null,null,null,null,null,null,"6)",null,{"$f":"ROUND(RAND()*(8-(2))+(2),0)","v":7},"of",{"$f":"ROUND(RAND()*(80-(11))+(11),1)*AO41","v":487.2},null,null,null,null,"6)",null,{"$f":"AO40*AQ40/AO41","v":426.3}]
[null,null,null,null,{"$f":"E40+1","v":7},null,null,null,null,null,null,null,null,null,null,null,null,null,null,null,null,null,{"$f":"W40+1","v":6},null,null,null,null,null,null,null,null,null,null,null,null,null,null,null,null,null,{"$f":"AO40+1","v":8}]

{"sheet":"Integers","index":8,"n_rows":40,"n_cols":50,"rows_kept":40,"cut":false,"hidden":false,"merged":[[12,41,12,42],[12,43,12,44],[39,24,39,25],[39,31,39,33],[39,42,39,43],[30,41,30,42],[30,43,30,44],[33,41,33,42],[33,43,33,44],[18,24,18,25],[18,31,18,33],[18,42,18,43],[39,49,39,51],[33,49,33,51],[36,6,36,7],[36,13,36,15],[36,24,36,25],[36,31,36,33],[36,42,36,43],[36,49,36,51],[33,5,33,6],[33,13,33,15],[33,31,33,33],[33,7,33,8],[33,23,33,24],[33,25,33,26],[39,6,39,7],[39,13,39,15],[30,13,30,15],[30,31,30,33],[30,49,30,51],[30,5,30,6],[30,7,30,8],[30,23,30,24],[30,25,30,26],[27,13,27,15],[27,31,27,33],[27,49,27,51],[27,6,27,7],[27,24,27,25],[27,42,27,43],[24,49,24,51],[22,2,22,8],[22,11,22,17],[22,20,22,26],[22,29,22,35],[22,38,22,44],[22,47,22,53],[24,6,24,7],[24,13,24,15],[24,24,24,25],[24,31,24,33],[24,42,24,43],[18,49,18,51],[12,49,12,51],[15,6,15,7],[15,13,15,15],[15,24,15,25],[15,31,15,33],[15,42,15,43],[15,49,15,51],[12,5,12,6],[12,13,12,15],[12,31,12,33],[12,7,12,8],[12,23,12,24],[12,25,12,26],[18,6,18,7],[18,13,18,15],[9,13,9,15],[9,31,9,33],[9,49,9,51],[9,7,9,8],[9,5,9,6],[9,23,9,24],[9,25,9,26],[9,41,9,42],[9,43,9,44],[6,13,6,15],[6,31,6,33],[6,49,6,51],[6,6,6,7],[6,24,6,25],[6,42,6,43],[3,49,3,51],[1,2,1,8],[1,11,1,17],[1,20,1,26],[1,29,1,35],[1,38,1,44],[1,47,1,53],[3,6,3,7],[3,13,3,15],[3,24,3,25],[3,31,3,33],[3,42,3,43]]}
[]
[null,null,"Integers 1",null,null,null,null,null,null,null,null,"Integers 1",null,null,null,null,null,null,null,null,"Integers 2",null,null,null,null,null,null,null,null,"Integers 2",null,null,null,null,null,null,null,null,"Integers 3",null,null,null,null,null,null,null,null,"Integers 3"]
[]
[null,null,"1)",null,{"$f":"ROUND(RAND()*(-5-(-20))+(-20),0)","v":-19},"+",{"$f":"ROUND(RAND()*(-30-(-11))+(-11),0)","v":-25},null,null,null,null,"1)",null,{"$f":"E4+G4","v":-44},null,null,null,null,null,null,"1)",null,{"$f":"ROUND(RAND()*(-5-(-20))+(-20),0)","v":-16},"+",{"$f":"ROUND(RAND()*(-30-(-11))+(-11),0)","v":-22},null,null,null,null,"1)",null,{"$f":"W4+Y4","v":-38},null,null,null,null,null,null,"1)",null,{"$f":"ROUND(RAND()*(-5-(-20))+(-20),0)","v":-9},"+",{"$f":"ROUND(RAND()*(-30-(-11))+(-11),0)","v":-19},null,null,null,null,"1)",null,{"$f":"AO4+AQ4","v":-28}]
[]
[]
[null,null,"2)",null,{"$f":"ROUND(RAND()*(25-(8))+(8),0)","v":20},"+",{"$f":"ROUND(RAND()*(-30-(-11))+(-11),0)","v":-16},null,null,null,null,"2)",null,{"$f":"E7+G7","v":4},null,null,null,null,null,null,"2)",null,{"$f":"ROUND(RAND()*(25-(8))+(8),0)","v":19},"+",{"$f":"ROUND(RAND()*(-30-(-11))+(-11),0)","v":-28},null,null,null,null,"2)",null,{"$f":"W7+Y7","v":-9},null,null,null,null,null,null,"2)",null,{"$f":"ROUND(RAND()*(25-(8))+(8),0)","v":13},"+",{"$f":"ROUND(RAND()*(-30-(-11))+(-11),0)","v":-19},null,null,null,null,"2)",null,{"$f":"AO7+AQ7","v":-6}]
[]
[null,null,"Find the difference between",null,null,null,null,null,null,null,null,null,null,null,null,null,null,null,null,null,"Find the difference between",null,null,null,null,null,null,null,null,null,null,null,null,null,null,null,null,null,"Find the difference between"]
[null,null,"3)",null,{"$f":"ROUND(RAND()*(25-(8))+(8),0)","v":12},"and",null,{"$f":"ROUND(RAND()*(-30-(-11))+(-11),0)","v":-18},null,null,null,"3)",null,{"$f":"E10-H10","v":30},null,null,null,null,null,null,"3)",null,{"$f":"ROUND(RAND()*(25-(8))+(8),0)","v":21},"and",null,{"$f":"ROUND(RAND()*(-30-(-11))+(-11),0)","v":-30},null,null,null,"3)",null,{"$f":"W10-Z10","v":51},null,null,null,null,null,null,"3)",null,{"$f":"ROUND(RAND()*(25-(8))+(8),0)","v":14},"and",null,{"$f":"ROUND(RAND()*(-30-(-11))+(-11),0)","v":-11},null,null,null,"3)",null,{"$f":"AO10-AR10","v":25}]
[]
[null,null,"Find the difference between",null,null,null,null,null,null,null,null,null,null,null,null,null,null,null,null,null,"Find the difference between",null,null,null,null,null,null,null,null,null,null,null,null,null,null,null,null,null,"Find the difference between"]
[null,null,"4)",null,{"$f":"ROUND(RAND()*((-25)-(-60))+(-60),0)","v":-32},"and",null,{"$f":"ROUND(RAND()*(60-(9))+(9),0)","v":50},null,null,null,"4)",null,{"$f":"H13-E13","v":82},null,null,null,null,null,null,"4)",null,{"$f":"ROUND(RAND()*((-25)-(-60))+(-60),0)","v":-42},"and",null,{"$f":"ROUND(RAND()*(60-(9))+(9),0)","v":58},null,null,null,"4)",null,{"$f":"Z13-W13","v":100},null,null,null,null,null,null,"4)",null,{"$f":"ROUND(RAND()*((-25)-(-60))+(-60),0)","v":-44},"and",null,{"$f":"ROUND(RAND()*(60-(9))+(9),0)","v":20},null,null,null,"4)",null,{"$f":"AR13-AO13","v":64}]
[]
[]
[null,null,"5)",null,{"$f":"ROUND(RAND()*(-5-(-20))+(-20),0)","v":-11},"-",{"$f":"ROUND(RAND()*(60-(7))+(7),0)","v":21},null,null,null,null,"5)",null,{"$f":"E16-G16","v":-32},null,null,null,null,null,null,"5)",null,{"$f":"ROUND(RAND()*(-5-(-20))+(-20),0)","v":-12},"-",{"$f":"ROUND(RAND()*(60-(7))+(7),0)","v":50},null,null,null,null,"5)",null,{"$f":"W16-Y16","v":-62},null,null,null,null,null,null,"5)",null,{"$f":"ROUND(RAND()*(-5-(-20))+(-20),0)","v":-7},"-",{"$f":"ROUND(RAND()*(60-(7))+(7),0)","v":17},null,null,null,null,"5)",null,{"$f":"AO16-AQ16","v":-24}]
[]
[]
[null,null,"6)",null,{"$f":"ROUND(RAND()*(-5-(-20))+(-20),0)","v":-14},"-",{"$f":"ROUND(RAND()*(60-(7))+(7),0)","v":22},null,null,null,null,"6)",null,{"$f":"E19-G19","v":-36},null,null,null,null,null,null,"6)",null,{"$f":"ROUND(RAND()*(-5-(-20))+(-20),0)","v":-6},"-",{"$f":"ROUND(RAND()*(60-(7))+(7),0)","v":22},null,null,null,null,"6)",null,{"$f":"W19-Y19","v":-28},null,null,null,null,null,null,"6)",null,{"$f":"ROUND(RAND()*(-5-(-20))+(-20),0)","v":-15},"-",{"$f":"ROUND(RAND()*(60-(7))+(7),0)","v":23},null,null,null,null,"6)",null,{"$f":"AO19-AQ19","v":-38}]
[]
[]
[]
[null,null,"Integers 4",null,null,null,null,null,null,null,null,"Integers 4",null,null,null,null,null,null,null,null,"Integers 5",null,null,null,null,null,null,null,null,"Integers 5",null,null,null,null,null,null,null,null,"Integers 6",null,null,null,null,null,null,null,null,"Integers 6"]
[]
[null,null,"1)",null,{"$f":"ROUND(RAND()*(-5-(-20))+(-20),0)","v":-16},"+",{"$f":"ROUND(RAND()*(-30-(-11))+(-11),0)","v":-29},null,null,null,null,"1)",null,{"$f":"E25+G25","v":-45},null,null,null,null,null,null,"1)",null,{"$f":"ROUND(RAND()*(-5-(-20))+(-20),0)","v":-16},"+",{"$f":"ROUND(RAND()*(-30-(-11))+(-11),0)","v":-25},null,null,null,null,"1)",null,{"$f":"W25+Y25","v":-41},null,null,null,null,null,null,"1)",null,{"$f":"ROUND(RAND()*(-5-(-20))+(-20),0)","v":-5},"+",{"$f":"ROUND(RAND()*(-30-(-11))+(-11),0)","v":-16},null,null,null,null,"1)",null,{"$f":"AO25+AQ25","v":-21}]
[]
[]
[null,null,"2)",null,{"$f":"ROUND(RAND()*(25-(8))+(8),0)","v":13},"+",{"$f":"ROUND(RAND()*(-30-(-11))+(-11),0)","v":-18},null,null,null,null,"2)",null,{"$f":"E28+G28","v":-5},null,null,null,null,null,null,"2)",null,{"$f":"ROUND(RAND()*(25-(8))+(8),0)","v":16},"+",{"$f":"ROUND(RAND()*(-30-(-11))+(-11),0)","v":-12},null,null,null,null,"2)",null,{"$f":"W28+Y28","v":4},null,null,null,null,null,null,"2)",null,{"$f":"ROUND(RAND()*(25-(8))+(8),0)","v":24},"+",{"$f":"ROUND(RAND()*(-30-(-11))+(-11),0)","v":-29},null,null,null,null,"2)",null,{"$f":"AO28+AQ28","v":-5}]
[]
[null,null,"Find the difference between",null,null,null,null,null,null,null,null,null,null,null,null,null,null,null,null,null,"Find the difference between",null,null,null,null,null,null,null,null,null,null,null,null,null,null,null,null,null,"Find the difference between"]
[null,null,"3)",null,{"$f":"ROUND(RAND()*(25-(8))+(8),0)","v":10},"and",null,{"$f":"ROUND(RAND()*(-30-(-11))+(-11),0)","v":-28},null,null,null,"3)",null,{"$f":"E31-H31","v":38},null,null,null,null,null,null,"3)",null,{"$f":"ROUND(RAND()*(25-(8))+(8),0)","v":12},"and",null,{"$f":"ROUND(RAND()*(-30-(-11))+(-11),0)","v":-27},null,null,null,"3)",null,{"$f":"W31-Z31","v":39},null,null,null,null,null,null,"3)",null,{"$f":"ROUND(RAND()*(25-(8))+(8),0)","v":10},"and",null,{"$f":"ROUND(RAND()*(-30-(-11))+(-11),0)","v":-25},null,null,null,"3)",null,{"$f":"AO31-AR31","v":35}]
[]
[null,null,"Find the difference between",null,null,null,null,null,null,null,null,null,null,null,null,null,null,null,null,null,"Find the difference between",null,null,null,null,null,null,null,null,null,null,null,null,null,null,null,null,null,"Find the difference between"]
[null,null,"4)",null,{"$f":"ROUND(RAND()*((-25)-(-60))+(-60),0)","v":-47},"and",null,{"$f":"ROUND(RAND()*(60-(9))+(9),0)","v":31},null,null,null,"4)",null,{"$f":"H34-E34","v":78},null,null,null,null,null,null,"4)",null,{"$f":"ROUND(RAND()*((-25)-(-60))+(-60),0)","v":-52},"and",null,{"$f":"ROUND(RAND()*(60-(9))+(9),0)","v":35},null,null,null,"4)",null,{"$f":"Z34-W34","v":87},null,null,null,null,null,null,"4)",null,{"$f":"ROUND(RAND()*((-25)-(-60))+(-60),0)","v":-49},"and",null,{"$f":"ROUND(RAND()*(60-(9))+(9),0)","v":24},null,null,null,"4)",null,{"$f":"AR34-AO34","v":73}]
[]
[]
[null,null,"5)",null,{"$f":"ROUND(RAND()*(-5-(-20))+(-20),0)","v":-10},"-",{"$f":"ROUND(RAND()*(60-(7))+(7),0)","v":30},null,null,null,null,"5)",null,{"$f":"E37-G37","v":-40},null,null,null,null,null,null,"5)",null,{"$f":"ROUND(RAND()*(-5-(-20))+(-20),0)","v":-18},"-",{"$f":"ROUND(RAND()*(60-(7))+(7),0)","v":58},null,null,null,null,"5)",null,{"$f":"W37-Y37","v":-76},null,null,null,null,null,null,"5)",null,{"$f":"ROUND(RAND()*(-5-(-20))+(-20),0)","v":-18},"-",{"$f":"ROUND(RAND()*(60-(7))+(7),0)","v":53},null,null,null,null,"5)",null,{"$f":"AO37-AQ37","v":-71}]
[]
[]
[null,null,"6)",null,{"$f":"ROUND(RAND()*(-5-(-20))+(-20),0)","v":-11},"-",{"$f":"ROUND(RAND()*(60-(7))+(7),0)","v":27},null,null,null,null,"6)",null,{"$f":"E40-G40","v":-38},null,null,null,null,null,null,"6)",null,{"$f":"ROUND(RAND()*(-5-(-20))+(-20),0)","v":-15},"-",{"$f":"ROUND(RAND()*(60-(7))+(7),0)","v":49},null,null,null,null,"6)",null,{"$f":"W40-Y40","v":-64},null,null,null,null,null,null,"6)",null,{"$f":"ROUND(RAND()*(-5-(-20))+(-20),0)","v":-7},"-",{"$f":"ROUND(RAND()*(60-(7))+(7),0)","v":23},null,null,null,null,"6)",null,{"$f":"AO40-AQ40","v":-30}]

{"sheet":"Solving_Equations","index":9,"n_rows":40,"n_cols":50,"rows_kept":40,"cut":false,"hidden":false,"merged":[[1,2,1,8],[1,11,1,17],[12,49,12,51],[18,13,18,15],[1,20,1,26],[1,29,1,35],[3,31,3,33],[6,31,6,33],[9,31,9,33],[12,31,12,33],[15,31,15,33],[18,31,18,33],[3,13,3,15],[6,13,6,15],[9,13,9,15],[12,13,12,15],[1,38,1,44],[1,47,1,53],[3,49,3,51],[6,49,6,51],[9,49,9,51],[27,13,27,15],[27,31,27,33],[27,49,27,51],[15,49,15,51],[18,49,18,51],[22,11,22,17],[22,20,22,26],[22,29,22,35],[22,38,22,44],[22,47,22,53],[15,13,15,15],[22,2,22,8],[36,13,36,15],[36,31,36,33],[36,49,36,51],[39,13,39,15],[39,31,39,33],[39,49,39,51],[30,13,30,15],[30,31,30,33],[30,49,30,51],[33,13,33,15],[33,31,33,33],[33,49,33,51],[24,13,24,15],[24,31,24,33],[24,49,24,51]]}
[]
[null,null,"Solving Equations 1",null,null,null,null,null,null,null,null,"Solving Equations 1",null,null,null,null,null,null,null,null,"Solving Equations 2",null,null,null,null,null,null,null,null,"Solving Equations 2",null,null,null,null,null,null,null,null,"Solving Equations 3",null,null,null,null,null,null,null,null,"Solving Equations 3"]
[]
[null,null,"1)",null,{"$f":"CHAR(RAND()*(122-113)+113)","v":"q"},"+",{"$f":"ROUND(RAND()*(30-(5))+(5),0)","v":26},"=",{"$f":"N4+G4","v":33},null,null,"1)",null,{"$f":"ROUND(RAND()*(10-(1))+(1),0)","v":7},null,null,null,null,null,null,"1)",null,{"$f":"CHAR(RAND()*(122-113)+113)","v":"q"},"+",{"$f":"ROUND(RAND()*(30-(5))+(5),0)","v":12},"=",{"$f":"AF4+Y4","v":14},null,null,"1)",null,{"$f":"ROUND(RAND()*(10-(1))+(1),0)","v":2},null,null,null,null,null,null,"1)",null,{"$f":"CHAR(RAND()*(122-113)+113)","v":"v"},"+",{"$f":"ROUND(RAND()*(30-(5))+(5),0)","v":22},"=",{"$f":"AX4+AQ4","v":28},null,null,"1)",null,{"$f":"ROUND(RAND()*(10-(1))+(1),0)","v":6}]
[]
[]
[null,null,"2)",null,{"$f":"CHAR(RAND()*(122-113)+113)","v":"y"},"-",{"$f":"ROUND(RAND()*(19-(5))+(5),0)","v":11},"=",{"$f":"N7-G7","v":-7},null,null,"2)",null,{"$f":"ROUND(RAND()*(10-(1))+(1),0)","v":4},null,null,null,null,null,null,"2)",null,{"$f":"CHAR(RAND()*(122-113)+113)","v":"y"},"-",{"$f":"ROUND(RAND()*(19-(5))+(5),0)","v":7},"=",{"$f":"AF7-Y7","v":-3},null,null,"2)",null,{"$f":"ROUND(RAND()*(10-(1))+(1),0)","v":4},null,null,null,null,null,null,"2)",null,{"$f":"CHAR(RAND()*(122-113)+113)","v":"y"},"-",{"$f":"ROUND(RAND()*(19-(5))+(5),0)","v":7},"=",{"$f":"AX7-AQ7","v":-2},null,null,"2)",null,{"$f":"ROUND(RAND()*(10-(1))+(1),0)","v":5}]
[]
[]
[null,null,"3)",null,null,{"$f":"ROUND(RAND()*((10)-(2))+(2),0)","v":7},{"$f":"CHAR(RAND()*(105-97)+97)","v":"f"},"=",{"$f":"F10*N10","v":133},null,null,"3)",null,{"$f":"ROUND(RAND()*(20-(1))+(1),0)","v":19},null,null,null,null,null,null,"3)",null,null,{"$f":"ROUND(RAND()*((10)-(2))+(2),0)","v":4},{"$f":"CHAR(RAND()*(105-97)+97)","v":"e"},"=",{"$f":"X10*AF10","v":52},null,null,"3)",null,{"$f":"ROUND(RAND()*(20-(1))+(1),0)","v":13},null,null,null,null,null,null,"3)",null,null,{"$f":"ROUND(RAND()*((10)-(2))+(2),0)","v":3},{"$f":"CHAR(RAND()*(105-97)+97)","v":"b"},"=",{"$f":"AP10*AX10","v":51},null,null,"3)",null,{"$f":"ROUND(RAND()*(20-(1))+(1),0)","v":17}]
[]
[]
[null,null,"4)",null,null,{"$f":"ROUND(RAND()*((9)-(2))+(2),0)*10","v":30},{"$f":"CHAR(RAND()*(105-97)+97)","v":"c"},"=",{"$f":"F13*N13","v":210},null,null,"4)",null,{"$f":"ROUND(RAND()*(10-(1))+(1),0)","v":7},null,null,null,null,null,null,"4)",null,null,{"$f":"ROUND(RAND()*((9)-(2))+(2),0)*10","v":90},{"$f":"CHAR(RAND()*(105-97)+97)","v":"f"},"=",{"$f":"X13*AF13","v":180},null,null,"4)",null,{"$f":"ROUND(RAND()*(10-(1))+(1),0)","v":2},null,null,null,null,null,null,"4)",null,null,{"$f":"ROUND(RAND()*((9)-(2))+(2),0)*10","v":80},{"$f":"CHAR(RAND()*(105-97)+97)","v":"h"},"=",{"$f":"AP13*AX13","v":640},null,null,"4)",null,{"$f":"ROUND(RAND()*(10-(1))+(1),0)","v":8}]
[]
[]
[null,null,"5)",{"$f":"ROUND(RAND()*(5-(2))+(2),0)","v":5},{"$f":"CHAR(RAND()*(122-113)+113)","v":"w"},"+",{"$f":"ROUND(RAND()*(10-(2))+(2),0)","v":7},"=",{"$f":"D16*N16+G16","v":97},null,null,"5)",null,{"$f":"ROUND(RAND()*(20-(1))+(1),0)","v":18},null,null,null,null,null,null,"5)",{"$f":"ROUND(RAND()*(5-(2))+(2),0)","v":3},{"$f":"CHAR(RAND()*(122-113)+113)","v":"u"},"+",{"$f":"ROUND(RAND()*(10-(2))+(2),0)","v":7},"=",{"$f":"V16*AF16+Y16","v":49},null,null,"5)",null,{"$f":"ROUND(RAND()*(20-(1))+(1),0)","v":14},null,null,null,null,null,null,"5)",{"$f":"ROUND(RAND()*(5-(2))+(2),0)","v":4},{"$f":"CHAR(RAND()*(122-113)+113)","v":"w"},"+",{"$f":"ROUND(RAND()*(10-(2))+(2),0)","v":6},"=",{"$f":"AN16*AX16+AQ16","v":22},null,null,"5)",null,{"$f":"ROUND(RAND()*(20-(1))+(1),0)","v":4}]
[]
[]
[null,null,"6)",{"$f":"ROUND(RAND()*(3-(2))+(2),0)","v":3},{"$f":"CHAR(RAND()*(105-97)+97)","v":"g"},"-",{"$f":"ROUND(RAND()*(4-(1))+(1),0)","v":3},"=",{"$f":"D19*N19-G19","v":39},null,null,"6)",null,{"$f":"ROUND(RAND()*(20-(1))+(1),0)","v":14},null,null,null,null,null,null,"6)",{"$f":"ROUND(RAND()*(3-(2))+(2),0)","v":3},{"$f":"CHAR(RAND()*(105-97)+97)","v":"b"},"-",{"$f":"ROUND(RAND()*(4-(1))+(1),0)","v":2},"=",{"$f":"V19*AF19-Y19","v":40},null,null,"6)",null,{"$f":"ROUND(RAND()*(20-(1))+(1),0)","v":14},null,null,null,null,null,null,"6)",{"$f":"ROUND(RAND()*(3-(2))+(2),0)","v":2},{"$f":"CHAR(RAND()*(105-97)+97)","v":"g"},"-",{"$f":"ROUND(RAND()*(4-(1))+(1),0)","v":1},"=",{"$f":"AN19*AX19-AQ19","v":31},null,null,"6)",null,{"$f":"ROUND(RAND()*(20-(1))+(1),0)","v":16}]
[]
[]
[]
[null,null,"Solving Equations 4",null,null,null,null,null,null,null,null,"Solving Equations 4",null,null,null,null,null,null,null,null,"Solving Equations 5",null,null,null,null,null,null,null,null,"Solving Equations 5",null,null,null,null,null,null,null,null,"Solving Equations 6",null,null,null,null,null,null,null,null,"Solving Equations 6"]
[]
[null,null,"1)",null,{"$f":"CHAR(RAND()*(122-113)+113)","v":"v"},"+",{"$f":"ROUND(RAND()*(30-(5))+(5),0)","v":21},"=",{"$f":"N25+G25","v":25},null,null,"1)",null,{"$f":"ROUND(RAND()*(10-(1))+(1),0)","v":4},null,null,null,null,null,null,"1)",null,{"$f":"CHAR(RAND()*(122-113)+113)","v":"v"},"+",{"$f":"ROUND(RAND()*(30-(5))+(5),0)","v":16},"=",{"$f":"AF25+Y25","v":21},null,null,"1)",null,{"$f":"ROUND(RAND()*(10-(1))+(1),0)","v":5},null,null,null,null,null,null,"1)",null,{"$f":"CHAR(RAND()*(122-113)+113)","v":"y"},"+",{"$f":"ROUND(RAND()*(30-(5))+(5),0)","v":27},"=",{"$f":"AX25+AQ25","v":35},null,null,"1)",null,{"$f":"ROUND(RAND()*(10-(1))+(1),0)","v":8}]
[]
[]
[null,null,"2)",null,{"$f":"CHAR(RAND()*(122-113)+113)","v":"u"},"-",{"$f":"ROUND(RAND()*(19-(5))+(5),0)","v":11},"=",{"$f":"N28-G28","v":-3},null,null,"2)",null,{"$f":"ROUND(RAND()*(10-(1))+(1),0)","v":8},null,null,null,null,null,null,"2)",null,{"$f":"CHAR(RAND()*(122-113)+113)","v":"t"},"-",{"$f":"ROUND(RAND()*(19-(5))+(5),0)","v":17},"=",{"$f":"AF28-Y28","v":-14},null,null,"2)",null,{"$f":"ROUND(RAND()*(10-(1))+(1),0)","v":3},null,null,null,null,null,null,"2)",null,{"$f":"CHAR(RAND()*(122-113)+113)","v":"w"},"-",{"$f":"ROUND(RAND()*(19-(5))+(5),0)","v":18},"=",{"$f":"AX28-AQ28","v":-11},null,null,"2)",null,{"$f":"ROUND(RAND()*(10-(1))+(1),0)","v":7}]
[]
[]
[null,null,"3)",null,null,{"$f":"ROUND(RAND()*((10)-(2))+(2),0)","v":5},{"$f":"CHAR(RAND()*(105-97)+97)","v":"b"},"=",{"$f":"F31*N31","v":60},null,null,"3)",null,{"$f":"ROUND(RAND()*(20-(1))+(1),0)","v":12},null,null,null,null,null,null,"3)",null,null,{"$f":"ROUND(RAND()*((10)-(2))+(2),0)","v":8},{"$f":"CHAR(RAND()*(105-97)+97)","v":"c"},"=",{"$f":"X31*AF31","v":96},null,null,"3)",null,{"$f":"ROUND(RAND()*(20-(1))+(1),0)","v":12},null,null,null,null,null,null,"3)",null,null,{"$f":"ROUND(RAND()*((10)-(2))+(2),0)","v":4},{"$f":"CHAR(RAND()*(105-97)+97)","v":"c"},"=",{"$f":"AP31*AX31","v":36},null,null,"3)",null,{"$f":"ROUND(RAND()*(20-(1))+(1),0)","v":9}]
[]
[]
[null,null,"4)",null,null,{"$f":"ROUND(RAND()*((9)-(2))+(2),0)*10","v":30},{"$f":"CHAR(RAND()*(105-97)+97)","v":"e"},"=",{"$f":"F34*N34","v":210},null,null,"4)",null,{"$f":"ROUND(RAND()*(10-(1))+(1),0)","v":7},null,null,null,null,null,null,"4)",null,null,{"$f":"ROUND(RAND()*((9)-(2))+(2),0)*10","v":20},{"$f":"CHAR(RAND()*(105-97)+97)","v":"b"},"=",{"$f":"X34*AF34","v":100},null,null,"4)",null,{"$f":"ROUND(RAND()*(10-(1))+(1),0)","v":5},null,null,null,null,null,null,"4)",null,null,{"$f":"ROUND(RAND()*((9)-(2))+(2),0)*10","v":60},{"$f":"CHAR(RAND()*(105-97)+97)","v":"e"},"=",{"$f":"AP34*AX34","v":420},null,null,"4)",null,{"$f":"ROUND(RAND()*(10-(1))+(1),0)","v":7}]
[]
[]
[null,null,"5)",{"$f":"ROUND(RAND()*(5-(2))+(2),0)","v":5},{"$f":"CHAR(RAND()*(122-113)+113)","v":"t"},"+",{"$f":"ROUND(RAND()*(10-(2))+(2),0)","v":5},"=",{"$f":"D37*N37+G37","v":105},null,null,"5)",null,{"$f":"ROUND(RAND()*(20-(1))+(1),0)","v":20},null,null,null,null,null,null,"5)",{"$f":"ROUND(RAND()*(5-(2))+(2),0)","v":3},{"$f":"CHAR(RAND()*(122-113)+113)","v":"u"},"+",{"$f":"ROUND(RAND()*(10-(2))+(2),0)","v":5},"=",{"$f":"V37*AF37+Y37","v":20},null,null,"5)",null,{"$f":"ROUND(RAND()*(20-(1))+(1),0)","v":5},null,null,null,null,null,null,"5)",{"$f":"ROUND(RAND()*(5-(2))+(2),0)","v":5},{"$f":"CHAR(RAND()*(122-113)+113)","v":"y"},"+",{"$f":"ROUND(RAND()*(10-(2))+(2),0)","v":6},"=",{"$f":"AN37*AX37+AQ37","v":26},null,null,"5)",null,{"$f":"ROUND(RAND()*(20-(1))+(1),0)","v":4}]
[]
[]
[null,null,"6)",{"$f":"ROUND(RAND()*(3-(2))+(2),0)","v":3},{"$f":"CHAR(RAND()*(105-97)+97)","v":"h"},"-",{"$f":"ROUND(RAND()*(4-(1))+(1),0)","v":3},"=",{"$f":"D40*N40-G40","v":54},null,null,"6)",null,{"$f":"ROUND(RAND()*(20-(1))+(1),0)","v":19},null,null,null,null,null,null,"6)",{"$f":"ROUND(RAND()*(3-(2))+(2),0)","v":2},{"$f":"CHAR(RAND()*(105-97)+97)","v":"e"},"-",{"$f":"ROUND(RAND()*(4-(1))+(1),0)","v":1},"=",{"$f":"V40*AF40-Y40","v":33},null,null,"6)",null,{"$f":"ROUND(RAND()*(20-(1))+(1),0)","v":17},null,null,null,null,null,null,"6)",{"$f":"ROUND(RAND()*(3-(2))+(2),0)","v":3},{"$f":"CHAR(RAND()*(105-97)+97)","v":"f"},"-",{"$f":"ROUND(RAND()*(4-(1))+(1),0)","v":1},"=",{"$f":"AN40*AX40-AQ40","v":41},null,null,"6)",null,{"$f":"ROUND(RAND()*(20-(1))+(1),0)","v":14}]

{"sheet":"Length","index":10,"n_rows":40,"n_cols":53,"rows_kept":40,"cut":false,"hidden":false,"merged":[[32,38,32,44],[33,39,34,43],[35,38,35,44],[36,39,37,43],[38,38,38,44],[39,39,40,43],[23,38,23,44],[24,40,25,43],[26,38,26,44],[27,39,28,43],[29,38,29,44],[30,39,31,43],[32,20,32,26],[33,21,34,25],[35,20,35,26],[36,21,37,25],[38,20,38,26],[39,21,40,25],[23,20,23,26],[24,22,25,25],[26,20,26,26],[27,21,28,25],[29,20,29,26],[30,21,31,25],[32,2,32,8],[33,3,34,7],[35,2,35,8],[36,3,37,7],[38,2,38,8],[39,3,40,7],[23,2,23,8],[24,4,25,7],[26,2,26,8],[27,3,28,7],[29,2,29,8],[30,3,31,7],[17,20,17,26],[18,21,19,25],[2,20,2,26],[3,22,4,25],[5,20,5,26],[6,21,7,25],[8,20,8,26],[9,21,10,25],[11,38,11,44],[12,39,13,43],[14,38,14,44],[15,39,16,43],[17,38,17,44],[18,39,19,43],[2,38,2,44],[3,40,4,43],[5,38,5,44],[6,39,7,43],[8,38,8,44],[9,39,10,43],[17,2,17,8],[6,3,7,7],[9,3,10,7],[12,3,13,7],[15,3,16,7],[18,3,19,7],[2,2,2,8],[3,4,4,7],[5,2,5,8],[8,2,8,8],[11,2,11,8],[39,13,39,15],[39,31,39,33],[39,49,39,51],[33,49,33,51],[36,13,36,15],[36,31,36,33],[36,49,36,51],[33,13,33,15],[33,31,33,33],[30,13,30,15],[30,31,30,33],[30,49,30,51],[27,13,27,15],[27,31,27,33],[27,49,27,51],[24,13,24,15],[24,31,24,33],[24,49,24,51],[22,2,22,8],[22,11,22,17],[22,20,22,26],[22,29,22,35],[22,38,22,44],[22,47,22,53],[18,13,18,15],[18,31,18,33],[18,49,18,51],[12,49,12,51],[15,13,15,15],[15,31,15,33],[15,49,15,51],[14,2,14,8],[12,13,12,15],[12,31,12,33],[9,13,9,15],[9,31,9,33],[9,49,9,51],[11,20,11,26],[12,21,13,25],[14,20,14,26],[15,21,16,25],[6,13,6,15],[6,31,6,33],[6,49,6,51],[3,13,3,15],[3,31,3,33],[3,49,3,51],[1,2,1,8],[1,11,1,17],[1,20,1,26],[1,29,1,35],[1,38,1,44],[1,47,1,53]]}
[]
[null,null,"Conversions 1",null,null,null,null,null,null,null,null,"Conversions 1",null,null,null,null,null,null,null,null,"Conversions 2",null,null,null,null,null,null,null,null,"Conversions 2",null,null,null,null,null,null,null,null,"Conversions 3",null,null,null,null,null,null,null,null,"Conversions 3"]
[null,null,"metres to centimetres",null,null,null,null,null,null,null,null,null,null,null,null,null,null,null,null,null,"metres to centimetres",null,null,null,null,null,null,null,null,null,null,null,null,null,null,null,null,null,"metres to centimetres"]
[null,null,"1)",null,{"$f":"ROUND(RAND()*(900-(0.1))+(0.1),1)","v":405.6},null,null,null,null,null,null,"1)",null,{"$f":"E4*100","v":40560},null,null,"cm",null,null,null,"1)",null,{"$f":"ROUND(RAND()*(900-(0.1))+(0.1),1)","v":59.6},null,null,null,null,null,null,"1)",null,{"$f":"W4*100","v":5960},null,null,"cm",null,null,null,"1)",null,{"$f":"ROUND(RAND()*(900-(0.1))+(0.1),1)","v":508.5},null,null,null,null,null,null,"1)",null,{"$f":"AO4*100","v":50850},null,null,"cm"]
[]
[null,null,"kilometres to metres",null,null,null,null,null,null,null,null,null,null,null,null,null,null,null,null,null,"kilometres to metres",null,null,null,null,null,null,null,null,null,null,null,null,null,null,null,null,null,"kilometres to metres"]
[null,null,"2)",{"$f":"ROUND(RAND()*(30-(11))+(11),1)","v":23.9},null,null,null,null,null,null,null,"2)",null,{"$f":"D7*1000","v":23900},null,null,"m",null,null,null,"2)",{"$f":"ROUND(RAND()*(30-(11))+(11),1)","v":21.5},null,null,null,null,null,null,null,"2)",null,{"$f":"V7*1000","v":21500},null,null,"m",null,null,null,"2)",{"$f":"ROUND(RAND()*(30-(11))+(11),1)","v":15.9},null,null,null,null,null,null,null,"2)",null,{"$f":"AN7*1000","v":15900},null,null,"m"]
[]
[null,null,"centimetres to metres",null,null,null,null,null,null,null,null,null,null,null,null,null,null,null,null,null,"centimetres to metres",null,null,null,null,null,null,null,null,null,null,null,null,null,null,null,null,null,"centimetres to metres"]
[null,null,"3)",{"$f":"ROUND(RAND()*(90-(2))+(2),0)*10","v":710},null,null,null,null,null,null,null,"3)",null,{"$f":"D10/100","v":7.1},null,null,"m",null,null,null,"3)",{"$f":"ROUND(RAND()*(90-(2))+(2),0)*10","v":790},null,null,null,null,null,null,null,"3)",null,{"$f":"V10/100","v":7.9},null,null,"m",null,null,null,"3)",{"$f":"ROUND(RAND()*(90-(2))+(2),0)*10","v":770},null,null,null,null,null,null,null,"3)",null,{"$f":"AN10/100","v":7.7},null,null,"m"]
[]
[null,null,"metres to kilometres",null,null,null,null,null,null,null,null,null,null,null,null,null,null,null,null,null,"metres to kilometres",null,null,null,null,null,null,null,null,null,null,null,null,null,null,null,null,null,"metres to kilometres"]
[null,null,"4)",{"$f":"ROUND(RAND()*(900-(2))+(2),0)*10","v":5080},null,null,null,null,null,null,null,"4)",null,{"$f":"D13/1000","v":5.08},null,null,"km",null,null,null,"4)",{"$f":"ROUND(RAND()*(900-(2))+(2),0)*10","v":4060},null,null,null,null,null,null,null,"4)",null,{"$f":"V13/1000","v":4.0599999999999996},null,null,"km",null,null,null,"4)",{"$f":"ROUND(RAND()*(900-(2))+(2),0)*10","v":3620},null,null,null,null,null,null,null,"4)",null,{"$f":"AN13/1000","v":3.62},null,null,"km"]
[]
[null,null,"millimetres to metres",null,null,null,null,null,null,null,null,null,null,null,null,null,null,null,null,null,"millimetres to metres",null,null,null,null,null,null,null,null,null,null,null,null,null,null,null,null,null,"millimetres to metres"]
[null,null,"5)",{"$f":"ROUND(RAND()*(900-(2))+(2),0)*10","v":3860},null,null,null,null,null,null,null,"5)",null,{"$f":"D16/1000","v":3.86},null,null,"m",null,null,null,"5)",{"$f":"ROUND(RAND()*(900-(2))+(2),0)*10","v":2130},null,null,null,null,null,null,null,"5)",null,{"$f":"V16/1000","v":2.13},null,null,"m",null,null,null,"5)",{"$f":"ROUND(RAND()*(900-(2))+(2),0)*10","v":210},null,null,null,null,null,null,null,"5)",null,{"$f":"AN16/1000","v":0.21},null,null,"m"]
[]
[null,null,"metres to millimetres",null,null,null,null,null,null,null,null,null,null,null,null,null,null,null,null,null,"metres to millimetres",null,null,null,null,null,null,null,null,null,null,null,null,null,null,null,null,null,"metres to millimetres"]
[null,null,"6)",{"$f":"ROUND(RAND()*(20-(1))+(1),1)","v":9.1},null,null,null,null,null,null,null,"6)",null,{"$f":"D19*1000","v":9100},null,null,"mm",null,null,null,"6)",{"$f":"ROUND(RAND()*(20-(1))+(1),1)","v":14.5},null,null,null,null,null,null,null,"6)",null,{"$f":"V19*1000","v":14500},null,null,"mm",null,null,null,"6)",{"$f":"ROUND(RAND()*(20-(1))+(1),1)","v":14.9},null,null,null,null,null,null,null,"6)",null,{"$f":"AN19*1000","v":14900},null,null,"mm"]
[]
[]
[]
[null,null,"Conversions 4",null,null,null,null,null,null,null,null,"Conversions 4",null,null,null,null,null,null,null,null,"Conversions 5",null,null,null,null,null,null,null,null,"Conversions 5",null,null,null,null,null,null,null,null,"Conversions 6",null,null,null,null,null,null,null,null,"Conversions 6"]
[null,null,"metres to centimetres",null,null,null,null,null,null,null,null,null,null,null,null,null,null,null,null,null,"metres to centimetres",null,null,null,null,null,null,null,null,null,null,null,null,null,null,null,null,null,"metres to centimetres"]
[null,null,"1)",null,{"$f":"ROUND(RAND()*(900-(0.1))+(0.1),1)","v":105.6},null,null,null,null,null,null,"1)",null,{"$f":"E25*100","v":10560},null,null,"cm",null,null,null,"1)",null,{"$f":"ROUND(RAND()*(900-(0.1))+(0.1),1)","v":184.4},null,null,null,null,null,null,"1)",null,{"$f":"W25*100","v":18440},null,null,"cm",null,null,null,"1)",null,{"$f":"ROUND(RAND()*(900-(0.1))+(0.1),1)","v":102.9},null,null,null,null,null,null,"1)",null,{"$f":"AO25*100","v":10290},null,null,"cm"]
[]
[null,null,"kilometres to metres",null,null,null,null,null,null,null,null,null,null,null,null,null,null,null,null,null,"kilometres to metres",null,null,null,null,null,null,null,null,null,null,null,null,null,null,null,null,null,"kilometres to metres"]
[null,null,"2)",{"$f":"ROUND(RAND()*(30-(11))+(11),1)","v":20.399999999999999},null,null,null,null,null,null,null,"2)",null,{"$f":"D28*1000","v":20400},null,null,"m",null,null,null,"2)",{"$f":"ROUND(RAND()*(30-(11))+(11),1)","v":15.1},null,null,null,null,null,null,null,"2)",null,{"$f":"V28*1000","v":15100},null,null,"m",null,null,null,"2)",{"$f":"ROUND(RAND()*(30-(11))+(11),1)","v":11.9},null,null,null,null,null,null,null,"2)",null,{"$f":"AN28*1000","v":11900},null,null,"m"]
[]
[null,null,"centimetres to metres",null,null,null,null,null,null,null,null,null,null,null,null,null,null,null,null,null,"centimetres to metres",null,null,null,null,null,null,null,null,null,null,null,null,null,null,null,null,null,"centimetres to metres"]
[null,null,"3)",{"$f":"ROUND(RAND()*(90-(2))+(2),0)*10","v":510},null,null,null,null,null,null,null,"3)",null,{"$f":"D31/100","v":5.0999999999999996},null,null,"m",null,null,null,"3)",{"$f":"ROUND(RAND()*(90-(2))+(2),0)*10","v":60},null,null,null,null,null,null,null,"3)",null,{"$f":"V31/100","v":0.6},null,null,"m",null,null,null,"3)",{"$f":"ROUND(RAND()*(90-(2))+(2),0)*10","v":370},null,null,null,null,null,null,null,"3)",null,{"$f":"AN31/100","v":3.7},null,null,"m"]
[]
[null,null,"metres to kilometres",null,null,null,null,null,null,null,null,null,null,null,null,null,null,null,null,null,"metres to kilometres",null,null,null,null,null,null,null,null,null,null,null,null,null,null,null,null,null,"metres to kilometres"]
[null,null,"4)",{"$f":"ROUND(RAND()*(900-(2))+(2),0)*10","v":3640},null,null,null,null,null,null,null,"4)",null,{"$f":"D34/1000","v":3.64},null,null,"km",null,null,null,"4)",{"$f":"ROUND(RAND()*(900-(2))+(2),0)*10","v":8480},null,null,null,null,null,null,null,"4)",null,{"$f":"V34/1000","v":8.48},null,null,"km",null,null,null,"4)",{"$f":"ROUND(RAND()*(900-(2))+(2),0)*10","v":6050},null,null,null,null,null,null,null,"4)",null,{"$f":"AN34/1000","v":6.05},null,null,"km"]
[]
[null,null,"millimetres to metres",null,null,null,null,null,null,null,null,null,null,null,null,null,null,null,null,null,"millimetres to metres",null,null,null,null,null,null,null,null,null,null,null,null,null,null,null,null,null,"millimetres to metres"]
[null,null,"5)",{"$f":"ROUND(RAND()*(900-(2))+(2),0)*10","v":8910},null,null,null,null,null,null,null,"5)",null,{"$f":"D37/1000","v":8.91},null,null,"m",null,null,null,"5)",{"$f":"ROUND(RAND()*(900-(2))+(2),0)*10","v":2470},null,null,null,null,null,null,null,"5)",null,{"$f":"V37/1000","v":2.4700000000000002},null,null,"m",null,null,null,"5)",{"$f":"ROUND(RAND()*(900-(2))+(2),0)*10","v":980},null,null,null,null,null,null,null,"5)",null,{"$f":"AN37/1000","v":0.98},null,null,"m"]
[]
[null,null,"metres to millimetres",null,null,null,null,null,null,null,null,null,null,null,null,null,null,null,null,null,"metres to millimetres",null,null,null,null,null,null,null,null,null,null,null,null,null,null,null,null,null,"metres to millimetres"]
[null,null,"6)",{"$f":"ROUND(RAND()*(20-(1))+(1),1)","v":18.399999999999999},null,null,null,null,null,null,null,"6)",null,{"$f":"D40*1000","v":18400},null,null,"mm",null,null,null,"6)",{"$f":"ROUND(RAND()*(20-(1))+(1),1)","v":16.600000000000001},null,null,null,null,null,null,null,"6)",null,{"$f":"V40*1000","v":16600},null,null,"mm",null,null,null,"6)",{"$f":"ROUND(RAND()*(20-(1))+(1),1)","v":4.8},null,null,null,null,null,null,null,"6)",null,{"$f":"AN40*1000","v":4800},null,null,"mm"]

{"sheet":"Perimeter","index":11,"n_rows":42,"n_cols":53,"rows_kept":42,"cut":false,"hidden":false,"merged":[[40,47,41,47],[40,49,41,51],[40,52,41,52],[38,38,42,44],[40,11,41,11],[40,13,41,15],[40,16,41,16],[40,29,41,29],[40,31,41,33],[40,34,41,34],[32,47,33,47],[32,49,33,51],[32,52,33,52],[35,2,37,8],[35,20,37,26],[35,38,37,44],[36,13,36,15],[36,31,36,33],[36,49,36,51],[30,38,34,44],[32,11,33,11],[32,13,33,15],[32,16,33,16],[32,29,33,29],[32,31,33,33],[32,34,33,34],[18,29,19,29],[18,31,19,33],[18,34,19,34],[16,2,20,8],[18,11,19,11],[18,13,19,15],[18,16,19,16],[10,47,11,47],[10,49,11,51],[10,52,11,52],[16,38,20,44],[18,47,19,47],[18,49,19,51],[18,52,19,52],[10,31,11,33],[10,34,11,34],[13,20,15,26],[5,38,7,44],[8,38,12,44],[38,2,42,8],[38,20,42,26],[28,13,28,15],[2,20,4,26],[5,20,7,26],[8,20,12,26],[10,11,11,11],[10,13,11,15],[10,16,11,16],[24,2,26,8],[24,20,26,26],[16,20,20,26],[27,2,29,8],[27,20,29,26],[30,2,34,8],[30,20,34,26],[28,49,28,51],[25,13,25,15],[25,31,25,33],[23,2,23,8],[23,11,23,17],[23,20,23,26],[23,29,23,35],[23,38,23,44],[23,47,23,53],[24,38,26,44],[25,49,25,51],[27,38,29,44],[28,31,28,33],[14,49,14,51],[14,13,14,15],[14,31,14,33],[13,2,15,8],[3,49,3,51],[6,13,6,15],[6,31,6,33],[6,49,6,51],[3,13,3,15],[3,31,3,33],[2,38,4,44],[2,2,4,8],[5,2,7,8],[8,2,12,8],[13,38,15,44],[10,29,11,29],[1,47,1,53],[1,2,1,8],[1,11,1,17],[1,20,1,26],[1,29,1,35],[1,38,1,44]]}
[]
[null,null,"Perimeter 1",null,null,null,null,null,null,null,null,"Perimeter 1",null,null,null,null,null,null,null,null,"Perimeter 2",null,null,null,null,null,null,null,null,"Perimeter 2",null,null,null,null,null,null,null,null,"Perimeter 3",null,null,null,null,null,null,null,null,"Perimeter 3"]
[null,null,{"$f":"\"1)     A rectangle has a length of \"&J3&\" cm and breadth \"&J4&\" cm.          Find the perimeter.\"","v":"1)     A rectangle has a length of 26 cm and breadth 4 cm.          Find the perimeter."},null,null,null,null,null,null,{"$f":"ROUND(RAND()*(30-15)+15,0)","v":26},null,null,null,null,null,null,null,null,null,null,{"$f":"\"1)     A rectangle has a length of \"&AB3&\" cm and breadth \"&AB4&\" cm.          Find the perimeter.\"","v":"1)     A rectangle has a length of 18 cm and breadth 9 cm.          Find the perimeter."},null,null,null,null,null,null,{"$f":"ROUND(RAND()*(30-15)+15,0)","v":18},null,null,null,null,null,null,null,null,null,null,{"$f":"\"1)     A rectangle has a length of \"&AT3&\" cm and breadth \"&AT4&\" cm.          Find the perimeter.\"","v":"1)     A rectangle has a length of 21 cm and breadth 12 cm.          Find the perimeter."},null,null,null,null,null,null,{"$f":"ROUND(RAND()*(30-15)+15,0)","v":21}]
[null,null,null,null,null,null,null,null,null,{"$f":"ROUND(RAND()*(14-3)+3,0)","v":4},null,"1)",null,{"$f":"2*J3+2*J4","v":60},null,null,"cm",null,null,null,null,null,null,null,null,null,null,{"$f":"ROUND(RAND()*(14-3)+3,0)","v":9},null,"1)",null,{"$f":"2*AB3+2*AB4","v":54},null,null,"cm",null,null,null,null,null,null,null,null,null,null,{"$f":"ROUND(RAND()*(14-3)+3,0)","v":12},null,"1)",null,{"$f":"2*AT3+2*AT4","v":66},null,null,"cm"]
[]
[null,null,{"$f":"\"2)     A rectangle has a length of \"&J6&\" m and breadth \"&J7&\" m. Calculate the perimeter.\"","v":"2)     A rectangle has a length of 11.6 m and breadth 5.4 m. Calculate the perimeter."},null,null,null,null,null,null,{"$f":"ROUND(RAND()*(15-9)+9,1)","v":11.6},null,null,null,null,null,null,null,null,null,null,{"$f":"\"2)     A rectangle has a length of \"&AB6&\" m and breadth \"&AB7&\" m. Calculate the perimeter.\"","v":"2)     A rectangle has a length of 14.6 m and breadth 7.3 m. Calculate the perimeter."},null,null,null,null,null,null,{"$f":"ROUND(RAND()*(15-9)+9,1)","v":14.6},null,null,null,null,null,null,null,null,null,null,{"$f":"\"2)     A rectangle has a length of \"&AT6&\" m and breadth \"&AT7&\" m. Calculate the perimeter.\"","v":"2)     A rectangle has a length of 13.8 m and breadth 4.2 m. Calculate the perimeter."},null,null,null,null,null,null,{"$f":"ROUND(RAND()*(15-9)+9,1)","v":13.8}]
[null,null,null,null,null,null,null,null,null,{"$f":"ROUND(RAND()*(8-4)+4,1)","v":5.4},null,"2)",null,{"$f":"2*J6+2*J7","v":34},null,null,"m",null,null,null,null,null,null,null,null,null,null,{"$f":"ROUND(RAND()*(8-4)+4,1)","v":7.3},null,"2)",null,{"$f":"2*AB6+2*AB7","v":43.8},null,null,"m",null,null,null,null,null,null,null,null,null,null,{"$f":"ROUND(RAND()*(8-4)+4,1)","v":4.2},null,"2)",null,{"$f":"2*AT6+2*AT7","v":36},null,null,"m"]
[]
[null,null,{"$f":"\"3)  A rectangle has a perimeter of \"&J12&\" cm. The length of the rectangle is \"&J11&\" cm.                 Evaluate the breadth of the rectangle.\"","v":"3)  A rectangle has a perimeter of 30 cm. The length of the rectangle is 10 cm.                 Evaluate the breadth of the rectangle."},null,null,null,null,null,null,null,null,null,null,null,null,null,null,null,null,null,{"$f":"\"3)  A rectangle has a perimeter of \"&AB12&\" cm. The length of the rectangle is \"&AB11&\" cm.                 Evaluate the breadth of the rectangle.\"","v":"3)  A rectangle has a perimeter of 32 cm. The length of the rectangle is 14 cm.                 Evaluate the breadth of the rectangle."},null,null,null,null,null,null,null,null,null,null,null,null,null,null,null,null,null,{"$f":"\"3)  A rectangle has a perimeter of \"&AT12&\" cm. The length of the rectangle is \"&AT11&\" cm.                 Evaluate the breadth of the rectangle.\"","v":"3)  A rectangle has a perimeter of 42 cm. The length of the rectangle is 15 cm.                 Evaluate the breadth of the rectangle."}]
[null,null,null,null,null,null,null,null,null,{"$f":"ROUND(RAND()*(8-2)+2,0)","v":5},null,null,null,null,null,null,null,null,null,null,null,null,null,null,null,null,null,{"$f":"ROUND(RAND()*(8-2)+2,0)","v":2},null,null,null,null,null,null,null,null,null,null,null,null,null,null,null,null,null,{"$f":"ROUND(RAND()*(8-2)+2,0)","v":6}]
[null,null,null,null,null,null,null,null,null,{"$f":"ROUND(RAND()*(15-9)+9,0)","v":10},null,"3)",null,{"$f":"J10","v":5},null,null,"cm",null,null,null,null,null,null,null,null,null,null,{"$f":"ROUND(RAND()*(15-9)+9,0)","v":14},null,"3)",null,{"$f":"AB10","v":2},null,null,"cm",null,null,null,null,null,null,null,null,null,null,{"$f":"ROUND(RAND()*(15-9)+9,0)","v":15},null,"3)",null,{"$f":"AT10","v":6},null,null,"cm"]
[null,null,null,null,null,null,null,null,null,{"$f":"2*J11+2*J10","v":30},null,null,null,null,null,null,null,null,null,null,null,null,null,null,null,null,null,{"$f":"2*AB11+2*AB10","v":32},null,null,null,null,null,null,null,null,null,null,null,null,null,null,null,null,null,{"$f":"2*AT11+2*AT10","v":42}]
[]
[null,null,{"$f":"\"4)     A square has a length of \"&J14&\" m.  Calculate the perimeter.\"","v":"4)     A square has a length of 10.3 m.  Calculate the perimeter."},null,null,null,null,null,null,{"$f":"ROUND(RAND()*(15-9)+9,1)","v":10.3},null,null,null,null,null,null,null,null,null,null,{"$f":"\"4)     A square has a length of \"&AB14&\" m.  Calculate the perimeter.\"","v":"4)     A square has a length of 13.2 m.  Calculate the perimeter."},null,null,null,null,null,null,{"$f":"ROUND(RAND()*(15-9)+9,1)","v":13.2},null,null,null,null,null,null,null,null,null,null,{"$f":"\"4)     A square has a length of \"&AT14&\" m.  Calculate the perimeter.\"","v":"4)     A square has a length of 14.6 m.  Calculate the perimeter."},null,null,null,null,null,null,{"$f":"ROUND(RAND()*(15-9)+9,1)","v":14.6}]
[null,null,null,null,null,null,null,null,null,null,null,"4)",null,{"$f":"4*J14","v":41.2},null,null,"m",null,null,null,null,null,null,null,null,null,null,null,null,"4)",null,{"$f":"4*AB14","v":52.8},null,null,"m",null,null,null,null,null,null,null,null,null,null,null,null,"4)",null,{"$f":"4*AT14","v":58.4},null,null,"m"]
[]
[null,null,{"$f":"\"5)  A rectangle has a perimeter of \"&J20&\" cm.  The breadth of the rectangle is \"&J18&\" cm.                 Evaluate the length of the rectangle.\"","v":"5)  A rectangle has a perimeter of 39.4 cm.  The breadth of the rectangle is 7.6 cm.                 Evaluate the length of the rectangle."},null,null,null,null,null,null,null,null,null,null,null,null,null,null,null,null,null,{"$f":"\"5)  A rectangle has a perimeter of \"&AB20&\" cm.  The breadth of the rectangle is \"&AB18&\" cm.                 Evaluate the length of the rectangle.\"","v":"5)  A rectangle has a perimeter of 27.6 cm.  The breadth of the rectangle is 2.9 cm.                 Evaluate the length of the rectangle."},null,null,null,null,null,null,null,null,null,null,null,null,null,null,null,null,null,{"$f":"\"5)  A rectangle has a perimeter of \"&AT20&\" cm.  The breadth of the rectangle is \"&AT18&\" cm.                 Evaluate the length of the rectangle.\"","v":"5)  A rectangle has a perimeter of 36.2 cm.  The breadth of the rectangle is 7.3 cm.                 Evaluate the length of the rectangle."}]
[null,null,null,null,null,null,null,null,null,{"$f":"ROUND(RAND()*(8-2)+2,1)","v":7.6},null,null,null,null,null,null,null,null,null,null,null,null,null,null,null,null,null,{"$f":"ROUND(RAND()*(8-2)+2,1)","v":2.9},null,null,null,null,null,null,null,null,null,null,null,null,null,null,null,null,null,{"$f":"ROUND(RAND()*(8-2)+2,1)","v":7.3}]
[null,null,null,null,null,null,null,null,null,{"$f":"ROUND(RAND()*(15-9)+9,1)","v":12.1},null,"5)",null,{"$f":"J19","v":12.1},null,null,"cm",null,null,null,null,null,null,null,null,null,null,{"$f":"ROUND(RAND()*(15-9)+9,1)","v":10.9},null,"5)",null,{"$f":"AB19","v":10.9},null,null,"cm",null,null,null,null,null,null,null,null,null,null,{"$f":"ROUND(RAND()*(15-9)+9,1)","v":10.8},null,"5)",null,{"$f":"AT19","v":10.8},null,null,"cm"]
[null,null,null,null,null,null,null,null,null,{"$f":"2*J19+2*J18","v":39.4},null,null,null,null,null,null,null,null,null,null,null,null,null,null,null,null,null,{"$f":"2*AB19+2*AB18","v":27.6},null,null,null,null,null,null,null,null,null,null,null,null,null,null,null,null,null,{"$f":"2*AT19+2*AT18","v":36.200000000000003}]
[]
[]
[]
[null,null,"Perimeter 4",null,null,null,null,null,null,null,null,"Perimeter 4",null,null,null,null,null,null,null,null,"Perimeter 5",null,null,null,null,null,null,null,null,"Perimeter 5",null,null,null,null,null,null,null,null,"Perimeter 6",null,null,null,null,null,null,null,null,"Perimeter 6"]
[null,null,{"$f":"\"1)     A rectangle has a length of \"&J25&\" cm and breadth \"&J26&\" cm.          Find the perimeter.\"","v":"1)     A rectangle has a length of 30 cm and breadth 14 cm.          Find the perimeter."},null,null,null,null,null,null,{"$f":"ROUND(RAND()*(30-15)+15,0)","v":30},null,null,null,null,null,null,null,null,null,null,{"$f":"\"1)     A rectangle has a length of \"&AB25&\" cm and breadth \"&AB26&\" cm.          Find the perimeter.\"","v":"1)     A rectangle has a length of 20 cm and breadth 6 cm.          Find the perimeter."},null,null,null,null,null,null,{"$f":"ROUND(RAND()*(30-15)+15,0)","v":20},null,null,null,null,null,null,null,null,null,null,{"$f":"\"1)     A rectangle has a length of \"&AT25&\" cm and breadth \"&AT26&\" cm.          Find the perimeter.\"","v":"1)     A rectangle has a length of 22 cm and breadth 6 cm.          Find the perimeter."},null,null,null,null,null,null,{"$f":"ROUND(RAND()*(30-15)+15,0)","v":22}]
[null,null,null,null,null,null,null,null,null,{"$f":"ROUND(RAND()*(14-3)+3,0)","v":14},null,"1)",null,{"$f":"2*J25+2*J26","v":88},null,null,"cm",null,null,null,null,null,null,null,null,null,null,{"$f":"ROUND(RAND()*(14-3)+3,0)","v":6},null,"1)",null,{"$f":"2*AB25+2*AB26","v":52},null,null,"cm",null,null,null,null,null,null,null,null,null,null,{"$f":"ROUND(RAND()*(14-3)+3,0)","v":6},null,"1)",null,{"$f":"2*AT25+2*AT26","v":56},null,null,"cm"]
[]
[null,null,{"$f":"\"2)     A rectangle has a length of \"&J28&\" m and breadth \"&J29&\" m. Calculate the perimeter.\"","v":"2)     A rectangle has a length of 12.8 m and breadth 6.9 m. Calculate the perimeter."},null,null,null,null,null,null,{"$f":"ROUND(RAND()*(15-9)+9,1)","v":12.8},null,null,null,null,null,null,null,null,null,null,{"$f":"\"2)     A rectangle has a length of \"&AB28&\" m and breadth \"&AB29&\" m. Calculate the perimeter.\"","v":"2)     A rectangle has a length of 13.1 m and breadth 7.3 m. Calculate the perimeter."},null,null,null,null,null,null,{"$f":"ROUND(RAND()*(15-9)+9,1)","v":13.1},null,null,null,null,null,null,null,null,null,null,{"$f":"\"2)     A rectangle has a length of \"&AT28&\" m and breadth \"&AT29&\" m. Calculate the perimeter.\"","v":"2)     A rectangle has a length of 12.5 m and breadth 4.1 m. Calculate the perimeter."},null,null,null,null,null,null,{"$f":"ROUND(RAND()*(15-9)+9,1)","v":12.5}]
[null,null,null,null,null,null,null,null,null,{"$f":"ROUND(RAND()*(8-4)+4,1)","v":6.9},null,"2)",null,{"$f":"2*J28+2*J29","v":39.400000000000006},null,null,"m",null,null,null,null,null,null,null,null,null,null,{"$f":"ROUND(RAND()*(8-4)+4,1)","v":7.3},null,"2)",null,{"$f":"2*AB28+2*AB29","v":40.799999999999997},null,null,"m",null,null,null,null,null,null,null,null,null,null,{"$f":"ROUND(RAND()*(8-4)+4,1)","v":4.0999999999999996},null,"2)",null,{"$f":"2*AT28+2*AT29","v":33.200000000000003},null,null,"m"]
[]
[null,null,{"$f":"\"3)  A rectangle has a perimeter of \"&J34&\" cm. The length of the rectangle is \"&J33&\" cm.                 Evaluate the breadth of the rectangle.\"","v":"3)  A rectangle has a perimeter of 34 cm. The length of the rectangle is 13 cm.                 Evaluate the breadth of the rectangle."},null,null,null,null,null,null,null,null,null,null,null,null,null,null,null,null,null,{"$f":"\"3)  A rectangle has a perimeter of \"&AB34&\" cm. The length of the rectangle is \"&AB33&\" cm.                 Evaluate the breadth of the rectangle.\"","v":"3)  A rectangle has a perimeter of 36 cm. The length of the rectangle is 14 cm.                 Evaluate the breadth of the rectangle."},null,null,null,null,null,null,null,null,null,null,null,null,null,null,null,null,null,{"$f":"\"3)  A rectangle has a perimeter of \"&AT34&\" cm. The length of the rectangle is \"&AT33&\" cm.                 Evaluate the breadth of the rectangle.\"","v":"3)  A rectangle has a perimeter of 38 cm. The length of the rectangle is 13 cm.                 Evaluate the breadth of the rectangle."}]
[null,null,null,null,null,null,null,null,null,{"$f":"ROUND(RAND()*(8-2)+2,0)","v":4},null,null,null,null,null,null,null,null,null,null,null,null,null,null,null,null,null,{"$f":"ROUND(RAND()*(8-2)+2,0)","v":4},null,null,null,null,null,null,null,null,null,null,null,null,null,null,null,null,null,{"$f":"ROUND(RAND()*(8-2)+2,0)","v":6}]
[null,null,null,null,null,null,null,null,null,{"$f":"ROUND(RAND()*(15-9)+9,0)","v":13},null,"3)",null,{"$f":"J32","v":4},null,null,"cm",null,null,null,null,null,null,null,null,null,null,{"$f":"ROUND(RAND()*(15-9)+9,0)","v":14},null,"3)",null,{"$f":"AB32","v":4},null,null,"cm",null,null,null,null,null,null,null,null,null,null,{"$f":"ROUND(RAND()*(15-9)+9,0)","v":13},null,"3)",null,{"$f":"AT32","v":6},null,null,"cm"]
[null,null,null,null,null,null,null,null,null,{"$f":"2*J33+2*J32","v":34},null,null,null,null,null,null,null,null,null,null,null,null,null,null,null,null,null,{"$f":"2*AB33+2*AB32","v":36},null,null,null,null,null,null,null,null,null,null,null,null,null,null,null,null,null,{"$f":"2*AT33+2*AT32","v":38}]
[]
[null,null,{"$f":"\"4)     A square has a length of \"&J36&\" m.  Calculate the perimeter.\"","v":"4)     A square has a length of 9.6 m.  Calculate the perimeter."},null,null,null,null,null,null,{"$f":"ROUND(RAND()*(15-9)+9,1)","v":9.6},null,null,null,null,null,null,null,null,null,null,{"$f":"\"4)     A square has a length of \"&AB36&\" m.  Calculate the perimeter.\"","v":"4)     A square has a length of 12.5 m.  Calculate the perimeter."},null,null,null,null,null,null,{"$f":"ROUND(RAND()*(15-9)+9,1)","v":12.5},null,null,null,null,null,null,null,null,null,null,{"$f":"\"4)     A square has a length of \"&AT36&\" m.  Calculate the perimeter.\"","v":"4)     A square has a length of 13 m.  Calculate the perimeter."},null,null,null,null,null,null,{"$f":"ROUND(RAND()*(15-9)+9,1)","v":13}]
[null,null,null,null,null,null,null,null,null,null,null,"4)",null,{"$f":"4*J36","v":38.4},null,null,"m",null,null,null,null,null,null,null,null,null,null,null,null,"4)",null,{"$f":"4*AB36","v":50},null,null,"m",null,null,null,null,null,null,null,null,null,null,null,null,"4)",null,{"$f":"4*AT36","v":52},null,null,"m"]
[]
[null,null,{"$f":"\"5)  A rectangle has a perimeter of \"&J42&\" cm.  The breadth of the rectangle is \"&J40&\" cm.                 Evaluate the length of the rectangle.\"","v":"5)  A rectangle has a perimeter of 40 cm.  The breadth of the rectangle is 6.4 cm.                 Evaluate the length of the rectangle."},null,null,null,null,null,null,null,null,null,null,null,null,null,null,null,null,null,{"$f":"\"5)  A rectangle has a perimeter of \"&AB42&\" cm.  The breadth of the rectangle is \"&AB40&\" cm.                 Evaluate the length of the rectangle.\"","v":"5)  A rectangle has a perimeter of 33.6 cm.  The breadth of the rectangle is 2.1 cm.                 Evaluate the length of the rectangle."},null,null,null,null,null,null,null,null,null,null,null,null,null,null,null,null,null,{"$f":"\"5)  A rectangle has a perimeter of \"&AT42&\" cm.  The breadth of the rectangle is \"&AT40&\" cm.                 Evaluate the length of the rectangle.\"","v":"5)  A rectangle has a perimeter of 41.4 cm.  The breadth of the rectangle is 5.8 cm.                 Evaluate the length of the rectangle."}]
[null,null,null,null,null,null,null,null,null,{"$f":"ROUND(RAND()*(8-2)+2,1)","v":6.4},null,null,null,null,null,null,null,null,null,null,null,null,null,null,null,null,null,{"$f":"ROUND(RAND()*(8-2)+2,1)","v":2.1},null,null,null,null,null,null,null,null,null,null,null,null,null,null,null,null,null,{"$f":"ROUND(RAND()*(8-2)+2,1)","v":5.8}]
[null,null,null,null,null,null,null,null,null,{"$f":"ROUND(RAND()*(15-9)+9,1)","v":13.6},null,"5)",null,{"$f":"J41","v":13.6},null,null,"cm",null,null,null,null,null,null,null,null,null,null,{"$f":"ROUND(RAND()*(15-9)+9,1)","v":14.7},null,"5)",null,{"$f":"AB41","v":14.7},null,null,"cm",null,null,null,null,null,null,null,null,null,null,{"$f":"ROUND(RAND()*(15-9)+9,1)","v":14.9},null,"5)",null,{"$f":"AT41","v":14.9},null,null,"cm"]
[null,null,null,null,null,null,null,null,null,{"$f":"2*J41+2*J40","v":40},null,null,null,null,null,null,null,null,null,null,null,null,null,null,null,null,null,{"$f":"2*AB41+2*AB40","v":33.6},null,null,null,null,null,null,null,null,null,null,null,null,null,null,null,null,null,{"$f":"2*AT41+2*AT40","v":41.4}]

{"sheet":"Area","index":12,"n_rows":42,"n_cols":53,"rows_kept":42,"cut":false,"hidden":false,"merged":[[40,47,41,47],[40,49,41,51],[40,52,41,52],[38,2,42,8],[38,20,42,26],[38,38,42,44],[40,11,41,11],[40,13,41,15],[40,16,41,16],[40,29,41,29],[40,31,41,33],[40,34,41,34],[32,47,33,47],[32,49,33,51],[32,52,33,52],[35,2,37,8],[35,20,37,26],[35,38,37,44],[36,13,36,15],[36,31,36,33],[36,49,36,51],[30,2,34,8],[30,20,34,26],[30,38,34,44],[32,11,33,11],[32,13,33,15],[32,16,33,16],[32,29,33,29],[32,31,33,33],[32,34,33,34],[27,2,29,8],[27,20,29,26],[27,38,29,44],[28,13,28,15],[28,31,28,33],[28,49,28,51],[24,2,26,8],[24,20,26,26],[24,38,26,44],[25,13,25,15],[25,31,25,33],[25,49,25,51],[18,47,19,47],[18,49,19,51],[18,52,19,52],[23,2,23,8],[23,11,23,17],[23,20,23,26],[23,29,23,35],[23,38,23,44],[23,47,23,53],[16,2,20,8],[16,20,20,26],[16,38,20,44],[18,11,19,11],[18,13,19,15],[18,16,19,16],[18,29,19,29],[18,31,19,33],[18,34,19,34],[10,47,11,47],[10,49,11,51],[10,52,11,52],[13,2,15,8],[13,20,15,26],[13,38,15,44],[14,13,14,15],[14,31,14,33],[14,49,14,51],[8,2,12,8],[8,20,12,26],[8,38,12,44],[10,11,11,11],[10,13,11,15],[10,16,11,16],[10,29,11,29],[10,31,11,33],[10,34,11,34],[5,2,7,8],[5,20,7,26],[5,38,7,44],[6,13,6,15],[6,31,6,33],[6,49,6,51],[2,2,4,8],[2,20,4,26],[2,38,4,44],[3,13,3,15],[3,31,3,33],[3,49,3,51],[1,2,1,8],[1,11,1,17],[1,20,1,26],[1,29,1,35],[1,38,1,44],[1,47,1,53]]}
[]
[null,null,"Area 1",null,null,null,null,null,null,null,null,"Area 1",null,null,null,null,null,null,null,null,"Area 2",null,null,null,null,null,null,null,null,"Area 2",null,null,null,null,null,null,null,null,"Area 3",null,null,null,null,null,null,null,null,"Area 3"]
[null,null,{"$f":"\"1)     A rectangle has a length of \"&J3&\" cm and breadth \"&J4&\" cm.          Find the area.\"","v":"1)     A rectangle has a length of 26 cm and breadth 6 cm.          Find the area."},null,null,null,null,null,null,{"$f":"ROUND(RAND()*(30-15)+15,0)","v":26},null,null,null,null,null,null,null,null,null,null,{"$f":"\"1)     A rectangle has a length of \"&AB3&\" cm and breadth \"&AB4&\" cm.          Find the area.\"","v":"1)     A rectangle has a length of 28 cm and breadth 11 cm.          Find the area."},null,null,null,null,null,null,{"$f":"ROUND(RAND()*(30-15)+15,0)","v":28},null,null,null,null,null,null,null,null,null,null,{"$f":"\"1)     A rectangle has a length of \"&AT3&\" cm and breadth \"&AT4&\" cm.          Find the area.\"","v":"1)     A rectangle has a length of 26 cm and breadth 10 cm.          Find the area."},null,null,null,null,null,null,{"$f":"ROUND(RAND()*(30-15)+15,0)","v":26}]
[null,null,null,null,null,null,null,null,null,{"$f":"ROUND(RAND()*(14-3)+3,0)","v":6},null,"1)",null,{"$f":"J3*J4","v":156},null,null,"cm2",null,null,null,null,null,null,null,null,null,null,{"$f":"ROUND(RAND()*(14-3)+3,0)","v":11},null,"1)",null,{"$f":"AB3*AB4","v":308},null,null,"cm2",null,null,null,null,null,null,null,null,null,null,{"$f":"ROUND(RAND()*(14-3)+3,0)","v":10},null,"1)",null,{"$f":"AT3*AT4","v":260},null,null,"cm2"]
[]
[null,null,{"$f":"\"2)     A rectangle has a length of \"&J6&\" m and breadth \"&J7&\" m. Calculate the area.\"","v":"2)     A rectangle has a length of 40 m and breadth 10.4 m. Calculate the area."},null,null,null,null,null,null,{"$f":"ROUND(RAND()*(9-2)+2,0)*10","v":40},null,null,null,null,null,null,null,null,null,null,{"$f":"\"2)     A rectangle has a length of \"&AB6&\" m and breadth \"&AB7&\" m. Calculate the area.\"","v":"2)     A rectangle has a length of 70 m and breadth 15.8 m. Calculate the area."},null,null,null,null,null,null,{"$f":"ROUND(RAND()*(9-2)+2,0)*10","v":70},null,null,null,null,null,null,null,null,null,null,{"$f":"\"2)     A rectangle has a length of \"&AT6&\" m and breadth \"&AT7&\" m. Calculate the area.\"","v":"2)     A rectangle has a length of 70 m and breadth 15.7 m. Calculate the area."},null,null,null,null,null,null,{"$f":"ROUND(RAND()*(9-2)+2,0)*10","v":70}]
[null,null,null,null,null,null,null,null,null,{"$f":"ROUND(RAND()*(18-6)+6,1)","v":10.4},null,"2)",null,{"$f":"J6*J7","v":416},null,null,"m2",null,null,null,null,null,null,null,null,null,null,{"$f":"ROUND(RAND()*(18-6)+6,1)","v":15.8},null,"2)",null,{"$f":"AB6*AB7","v":1106},null,null,"m2",null,null,null,null,null,null,null,null,null,null,{"$f":"ROUND(RAND()*(18-6)+6,1)","v":15.7},null,"2)",null,{"$f":"AT6*AT7","v":1099},null,null,"m2"]
[]
[null,null,{"$f":"\"3)  A rectangle has a area of \"&J12&\" square centimetres. The length of the rectangle is \"&J11&\" cm.                 Evaluate the breadth of the rectangle.\"","v":"3)  A rectangle has a area of 98 square centimetres. The length of the rectangle is 14 cm.                 Evaluate the breadth of the rectangle."},null,null,null,null,null,null,null,null,null,null,null,null,null,null,null,null,null,{"$f":"\"3)  A rectangle has a area of \"&AB12&\" square centimetres. The length of the rectangle is \"&AB11&\" cm.                 Evaluate the breadth of the rectangle.\"","v":"3)  A rectangle has a area of 30 square centimetres. The length of the rectangle is 15 cm.                 Evaluate the breadth of the rectangle."},null,null,null,null,null,null,null,null,null,null,null,null,null,null,null,null,null,{"$f":"\"3)  A rectangle has a area of \"&AT12&\" square centimetres. The length of the rectangle is \"&AT11&\" cm.                 Evaluate the breadth of the rectangle.\"","v":"3)  A rectangle has a area of 54 square centimetres. The length of the rectangle is 9 cm.                 Evaluate the breadth of the rectangle."}]
[null,null,null,null,null,null,null,null,null,{"$f":"ROUND(RAND()*(8-2)+2,0)","v":7},null,null,null,null,null,null,null,null,null,null,null,null,null,null,null,null,null,{"$f":"ROUND(RAND()*(8-2)+2,0)","v":2},null,null,null,null,null,null,null,null,null,null,null,null,null,null,null,null,null,{"$f":"ROUND(RAND()*(8-2)+2,0)","v":6}]
[null,null,null,null,null,null,null,null,null,{"$f":"ROUND(RAND()*(15-9)+9,0)","v":14},null,"3)",null,{"$f":"J10","v":7},null,null,"cm",null,null,null,null,null,null,null,null,null,null,{"$f":"ROUND(RAND()*(15-9)+9,0)","v":15},null,"3)",null,{"$f":"AB10","v":2},null,null,"cm",null,null,null,null,null,null,null,null,null,null,{"$f":"ROUND(RAND()*(15-9)+9,0)","v":9},null,"3)",null,{"$f":"AT10","v":6},null,null,"cm"]
[null,null,null,null,null,null,null,null,null,{"$f":"J11*J10","v":98},null,null,null,null,null,null,null,null,null,null,null,null,null,null,null,null,null,{"$f":"AB11*AB10","v":30},null,null,null,null,null,null,null,null,null,null,null,null,null,null,null,null,null,{"$f":"AT11*AT10","v":54}]
[]
[null,null,{"$f":"\"4)   A square has a length of \"&J14&\" m.  Calculate the area.\"","v":"4)   A square has a length of 10 m.  Calculate the area."},null,null,null,null,null,null,{"$f":"ROUND(RAND()*(12-3)+3,0)","v":10},null,null,null,null,null,null,null,null,null,null,{"$f":"\"4)   A square has a length of \"&AB14&\" m.  Calculate the area.\"","v":"4)   A square has a length of 9 m.  Calculate the area."},null,null,null,null,null,null,{"$f":"ROUND(RAND()*(12-3)+3,0)","v":9},null,null,null,null,null,null,null,null,null,null,{"$f":"\"4)   A square has a length of \"&AT14&\" m.  Calculate the area.\"","v":"4)   A square has a length of 4 m.  Calculate the area."},null,null,null,null,null,null,{"$f":"ROUND(RAND()*(12-3)+3,0)","v":4}]
[null,null,null,null,null,null,null,null,null,null,null,"4)",null,{"$f":"J14*J14","v":100},null,null,"m2",null,null,null,null,null,null,null,null,null,null,null,null,"4)",null,{"$f":"AB14*AB14","v":81},null,null,"m2",null,null,null,null,null,null,null,null,null,null,null,null,"4)",null,{"$f":"AT14*AT14","v":16},null,null,"m2"]
[]
[null,null,{"$f":"\"5)  The length of the base of a traingle is \"&J19&\" cm.                                          The height is \"&J18&\" cm.  Calculate the area of the triangle.\"","v":"5)  The length of the base of a traingle is 27 cm.                                          The height is 20 cm.  Calculate the area of the triangle."},null,null,null,null,null,null,null,null,null,null,null,null,null,null,null,null,null,{"$f":"\"5)  The length of the base of a traingle is \"&AB19&\" cm.                                          The height is \"&AB18&\" cm.  Calculate the area of the triangle.\"","v":"5)  The length of the base of a traingle is 21 cm.                                          The height is 12 cm.  Calculate the area of the triangle."},null,null,null,null,null,null,null,null,null,null,null,null,null,null,null,null,null,{"$f":"\"5)  The length of the base of a traingle is \"&AT19&\" cm.                                          The height is \"&AT18&\" cm.  Calculate the area of the triangle.\"","v":"5)  The length of the base of a traingle is 14 cm.                                          The height is 6 cm.  Calculate the area of the triangle."}]
[null,null,null,null,null,null,null,null,null,{"$f":"ROUND(RAND()*(10-1)+1,0)*2","v":20},null,null,null,null,null,null,null,null,null,null,null,null,null,null,null,null,null,{"$f":"ROUND(RAND()*(10-1)+1,0)*2","v":12},null,null,null,null,null,null,null,null,null,null,null,null,null,null,null,null,null,{"$f":"ROUND(RAND()*(10-1)+1,0)*2","v":6}]
[null,null,null,null,null,null,null,null,null,{"$f":"ROUND(RAND()*(40-6)+6,0)","v":27},null,"5)",null,{"$f":"J20","v":270},null,null,"cm2",null,null,null,null,null,null,null,null,null,null,{"$f":"ROUND(RAND()*(40-6)+6,0)","v":21},null,"5)",null,{"$f":"AB20","v":126},null,null,"cm2",null,null,null,null,null,null,null,null,null,null,{"$f":"ROUND(RAND()*(40-6)+6,0)","v":14},null,"5)",null,{"$f":"AT20","v":42},null,null,"cm2"]
[null,null,null,null,null,null,null,null,null,{"$f":"0.5*J19*J18","v":270},null,null,null,null,null,null,null,null,null,null,null,null,null,null,null,null,null,{"$f":"0.5*AB19*AB18","v":126},null,null,null,null,null,null,null,null,null,null,null,null,null,null,null,null,null,{"$f":"0.5*AT19*AT18","v":42}]
[]
[]
[]
[null,null,"Area 4",null,null,null,null,null,null,null,null,"Area 4",null,null,null,null,null,null,null,null,"Area 5",null,null,null,null,null,null,null,null,"Area 5",null,null,null,null,null,null,null,null,"Area 6",null,null,null,null,null,null,null,null,"Area 6"]
[null,null,{"$f":"\"1)     A rectangle has a length of \"&J25&\" cm and breadth \"&J26&\" cm.          Find the area.\"","v":"1)     A rectangle has a length of 30 cm and breadth 7 cm.          Find the area."},null,null,null,null,null,null,{"$f":"ROUND(RAND()*(30-15)+15,0)","v":30},null,null,null,null,null,null,null,null,null,null,{"$f":"\"1)     A rectangle has a length of \"&AB25&\" cm and breadth \"&AB26&\" cm.          Find the area.\"","v":"1)     A rectangle has a length of 17 cm and breadth 3 cm.          Find the area."},null,null,null,null,null,null,{"$f":"ROUND(RAND()*(30-15)+15,0)","v":17},null,null,null,null,null,null,null,null,null,null,{"$f":"\"1)     A rectangle has a length of \"&AT25&\" cm and breadth \"&AT26&\" cm.          Find the area.\"","v":"1)     A rectangle has a length of 29 cm and breadth 5 cm.          Find the area."},null,null,null,null,null,null,{"$f":"ROUND(RAND()*(30-15)+15,0)","v":29}]
[null,null,null,null,null,null,null,null,null,{"$f":"ROUND(RAND()*(14-3)+3,0)","v":7},null,"1)",null,{"$f":"J25*J26","v":210},null,null,"cm2",null,null,null,null,null,null,null,null,null,null,{"$f":"ROUND(RAND()*(14-3)+3,0)","v":3},null,"1)",null,{"$f":"AB25*AB26","v":51},null,null,"cm2",null,null,null,null,null,null,null,null,null,null,{"$f":"ROUND(RAND()*(14-3)+3,0)","v":5},null,"1)",null,{"$f":"AT25*AT26","v":145},null,null,"cm2"]
[]
[null,null,{"$f":"\"2)     A rectangle has a length of \"&J28&\" m and breadth \"&J29&\" m. Calculate the area.\"","v":"2)     A rectangle has a length of 60 m and breadth 17.1 m. Calculate the area."},null,null,null,null,null,null,{"$f":"ROUND(RAND()*(9-2)+2,0)*10","v":60},null,null,null,null,null,null,null,null,null,null,{"$f":"\"2)     A rectangle has a length of \"&AB28&\" m and breadth \"&AB29&\" m. Calculate the area.\"","v":"2)     A rectangle has a length of 70 m and breadth 16 m. Calculate the area."},null,null,null,null,null,null,{"$f":"ROUND(RAND()*(9-2)+2,0)*10","v":70},null,null,null,null,null,null,null,null,null,null,{"$f":"\"2)     A rectangle has a length of \"&AT28&\" m and breadth \"&AT29&\" m. Calculate the area.\"","v":"2)     A rectangle has a length of 40 m and breadth 11.2 m. Calculate the area."},null,null,null,null,null,null,{"$f":"ROUND(RAND()*(9-2)+2,0)*10","v":40}]
[null,null,null,null,null,null,null,null,null,{"$f":"ROUND(RAND()*(18-6)+6,1)","v":17.100000000000001},null,"2)",null,{"$f":"J28*J29","v":1026},null,null,"m2",null,null,null,null,null,null,null,null,null,null,{"$f":"ROUND(RAND()*(18-6)+6,1)","v":16},null,"2)",null,{"$f":"AB28*AB29","v":1120},null,null,"m2",null,null,null,null,null,null,null,null,null,null,{"$f":"ROUND(RAND()*(18-6)+6,1)","v":11.2},null,"2)",null,{"$f":"AT28*AT29","v":448},null,null,"m2"]
[]
[null,null,{"$f":"\"3)  A rectangle has a area of \"&J34&\" square centimetres. The length of the rectangle is \"&J33&\" cm.                 Evaluate the breadth of the rectangle.\"","v":"3)  A rectangle has a area of 45 square centimetres. The length of the rectangle is 15 cm.                 Evaluate the breadth of the rectangle."},null,null,null,null,null,null,null,null,null,null,null,null,null,null,null,null,null,{"$f":"\"3)  A rectangle has a area of \"&AB34&\" square centimetres. The length of the rectangle is \"&AB33&\" cm.                 Evaluate the breadth of the rectangle.\"","v":"3)  A rectangle has a area of 40 square centimetres. The length of the rectangle is 10 cm.                 Evaluate the breadth of the rectangle."},null,null,null,null,null,null,null,null,null,null,null,null,null,null,null,null,null,{"$f":"\"3)  A rectangle has a area of \"&AT34&\" square centimetres. The length of the rectangle is \"&AT33&\" cm.                 Evaluate the breadth of the rectangle.\"","v":"3)  A rectangle has a area of 36 square centimetres. The length of the rectangle is 12 cm.                 Evaluate the breadth of the rectangle."}]
[null,null,null,null,null,null,null,null,null,{"$f":"ROUND(RAND()*(8-2)+2,0)","v":3},null,null,null,null,null,null,null,null,null,null,null,null,null,null,null,null,null,{"$f":"ROUND(RAND()*(8-2)+2,0)","v":4},null,null,null,null,null,null,null,null,null,null,null,null,null,null,null,null,null,{"$f":"ROUND(RAND()*(8-2)+2,0)","v":3}]
[null,null,null,null,null,null,null,null,null,{"$f":"ROUND(RAND()*(15-9)+9,0)","v":15},null,"3)",null,{"$f":"J32","v":3},null,null,"cm",null,null,null,null,null,null,null,null,null,null,{"$f":"ROUND(RAND()*(15-9)+9,0)","v":10},null,"3)",null,{"$f":"AB32","v":4},null,null,"cm",null,null,null,null,null,null,null,null,null,null,{"$f":"ROUND(RAND()*(15-9)+9,0)","v":12},null,"3)",null,{"$f":"AT32","v":3},null,null,"cm"]
[null,null,null,null,null,null,null,null,null,{"$f":"J33*J32","v":45},null,null,null,null,null,null,null,null,null,null,null,null,null,null,null,null,null,{"$f":"AB33*AB32","v":40},null,null,null,null,null,null,null,null,null,null,null,null,null,null,null,null,null,{"$f":"AT33*AT32","v":36}]
[]
[null,null,{"$f":"\"4)   A square has a length of \"&J36&\" m.  Calculate the area.\"","v":"4)   A square has a length of 7 m.  Calculate the area."},null,null,null,null,null,null,{"$f":"ROUND(RAND()*(12-3)+3,0)","v":7},null,null,null,null,null,null,null,null,null,null,{"$f":"\"4)   A square has a length of \"&AB36&\" m.  Calculate the area.\"","v":"4)   A square has a length of 6 m.  Calculate the area."},null,null,null,null,null,null,{"$f":"ROUND(RAND()*(12-3)+3,0)","v":6},null,null,null,null,null,null,null,null,null,null,{"$f":"\"4)   A square has a length of \"&AT36&\" m.  Calculate the area.\"","v":"4)   A square has a length of 10 m.  Calculate the area."},null,null,null,null,null,null,{"$f":"ROUND(RAND()*(12-3)+3,0)","v":10}]
[null,null,null,null,null,null,null,null,null,null,null,"4)",null,{"$f":"J36*J36","v":49},null,null,"m2",null,null,null,null,null,null,null,null,null,null,null,null,"4)",null,{"$f":"AB36*AB36","v":36},null,null,"m2",null,null,null,null,null,null,null,null,null,null,null,null,"4)",null,{"$f":"AT36*AT36","v":100},null,null,"m2"]
[]
[null,null,{"$f":"\"5)  The length of the base of a traingle is \"&J41&\" cm.                                          The height is \"&J40&\" cm.  Calculate the area of the triangle.\"","v":"5)  The length of the base of a traingle is 20 cm.                                          The height is 10 cm.  Calculate the area of the triangle."},null,null,null,null,null,null,null,null,null,null,null,null,null,null,null,null,null,{"$f":"\"5)  The length of the base of a traingle is \"&AB41&\" cm.                                          The height is \"&AB40&\" cm.  Calculate the area of the triangle.\"","v":"5)  The length of the base of a traingle is 29 cm.                                          The height is 2 cm.  Calculate the area of the triangle."},null,null,null,null,null,null,null,null,null,null,null,null,null,null,null,null,null,{"$f":"\"5)  The length of the base of a traingle is \"&AT41&\" cm.                                          The height is \"&AT40&\" cm.  Calculate the area of the triangle.\"","v":"5)  The length of the base of a traingle is 40 cm.                                          The height is 4 cm.  Calculate the area of the triangle."}]
[null,null,null,null,null,null,null,null,null,{"$f":"ROUND(RAND()*(10-1)+1,0)*2","v":10},null,null,null,null,null,null,null,null,null,null,null,null,null,null,null,null,null,{"$f":"ROUND(RAND()*(10-1)+1,0)*2","v":2},null,null,null,null,null,null,null,null,null,null,null,null,null,null,null,null,null,{"$f":"ROUND(RAND()*(10-1)+1,0)*2","v":4}]
[null,null,null,null,null,null,null,null,null,{"$f":"ROUND(RAND()*(40-6)+6,0)","v":20},null,"5)",null,{"$f":"J42","v":100},null,null,"cm2",null,null,null,null,null,null,null,null,null,null,{"$f":"ROUND(RAND()*(40-6)+6,0)","v":29},null,"5)",null,{"$f":"AB42","v":29},null,null,"cm2",null,null,null,null,null,null,null,null,null,null,{"$f":"ROUND(RAND()*(40-6)+6,0)","v":40},null,"5)",null,{"$f":"AT42","v":80},null,null,"cm2"]
[null,null,null,null,null,null,null,null,null,{"$f":"0.5*J41*J40","v":100},null,null,null,null,null,null,null,null,null,null,null,null,null,null,null,null,null,{"$f":"0.5*AB41*AB40","v":29},null,null,null,null,null,null,null,null,null,null,null,null,null,null,null,null,null,{"$f":"0.5*AT41*AT40","v":80}]

{"sheet":"Scales","index":13,"n_rows":42,"n_cols":53,"rows_kept":42,"cut":false,"hidden":false,"merged":[[40,47,41,47],[40,49,41,51],[40,52,41,52],[38,2,42,8],[38,20,42,26],[38,38,42,44],[40,11,41,11],[40,13,41,15],[40,16,41,16],[40,29,41,29],[40,31,41,33],[40,34,41,34],[32,47,33,47],[32,49,33,51],[32,52,33,52],[35,2,37,8],[35,20,37,26],[35,38,37,44],[36,13,36,15],[36,31,36,33],[36,49,36,51],[30,2,34,8],[30,20,34,26],[30,38,34,44],[32,11,33,11],[32,13,33,15],[32,16,33,16],[32,29,33,29],[32,31,33,33],[32,34,33,34],[27,2,29,8],[27,20,29,26],[27,38,29,44],[28,13,28,15],[28,31,28,33],[28,49,28,51],[24,2,26,8],[24,20,26,26],[24,38,26,44],[25,13,25,15],[25,31,25,33],[25,49,25,51],[18,47,19,47],[18,49,19,51],[18,52,19,52],[23,2,23,8],[23,11,23,17],[23,20,23,26],[23,29,23,35],[23,38,23,44],[23,47,23,53],[16,2,20,8],[16,20,20,26],[16,38,20,44],[18,11,19,11],[18,13,19,15],[18,16,19,16],[18,29,19,29],[18,31,19,33],[18,34,19,34],[10,47,11,47],[10,49,11,51],[10,52,11,52],[13,2,15,8],[13,20,15,26],[13,38,15,44],[14,13,14,15],[14,31,14,33],[14,49,14,51],[8,2,12,8],[8,20,12,26],[8,38,12,44],[10,11,11,11],[10,13,11,15],[10,16,11,16],[10,29,11,29],[10,31,11,33],[10,34,11,34],[5,2,7,8],[5,20,7,26],[5,38,7,44],[6,13,6,15],[6,31,6,33],[6,49,6,51],[2,2,4,8],[2,20,4,26],[2,38,4,44],[3,13,3,15],[3,31,3,33],[3,49,3,51],[1,2,1,8],[1,11,1,17],[1,20,1,26],[1,29,1,35],[1,38,1,44],[1,47,1,53]]}
[]
[null,null,"Area 1",null,null,null,null,null,null,null,null,"Area 1",null,null,null,null,null,null,null,null,"Area 2",null,null,null,null,null,null,null,null,"Area 2",null,null,null,null,null,null,null,null,"Area 3",null,null,null,null,null,null,null,null,"Area 3"]
[null,null,{"$f":"\"1)     A rectangle has a length of \"&J3&\" cm and breadth \"&J4&\" cm.          Find the area.\"","v":"1)     A rectangle has a length of 26 cm and breadth 6 cm.          Find the area."},null,null,null,null,null,null,{"$f":"ROUND(RAND()*(30-15)+15,0)","v":26},null,null,null,null,null,null,null,null,null,null,{"$f":"\"1)     A rectangle has a length of \"&AB3&\" cm and breadth \"&AB4&\" cm.          Find the area.\"","v":"1)     A rectangle has a length of 28 cm and breadth 11 cm.          Find the area."},null,null,null,null,null,null,{"$f":"ROUND(RAND()*(30-15)+15,0)","v":28},null,null,null,null,null,null,null,null,null,null,{"$f":"\"1)     A rectangle has a length of \"&AT3&\" cm and breadth \"&AT4&\" cm.          Find the area.\"","v":"1)     A rectangle has a length of 26 cm and breadth 10 cm.          Find the area."},null,null,null,null,null,null,{"$f":"ROUND(RAND()*(30-15)+15,0)","v":26}]
[null,null,null,null,null,null,null,null,null,{"$f":"ROUND(RAND()*(14-3)+3,0)","v":6},null,"1)",null,{"$f":"J3*J4","v":156},null,null,"cm2",null,null,null,null,null,null,null,null,null,null,{"$f":"ROUND(RAND()*(14-3)+3,0)","v":11},null,"1)",null,{"$f":"AB3*AB4","v":308},null,null,"cm2",null,null,null,null,null,null,null,null,null,null,{"$f":"ROUND(RAND()*(14-3)+3,0)","v":10},null,"1)",null,{"$f":"AT3*AT4","v":260},null,null,"cm2"]
[]
[null,null,{"$f":"\"2)     A rectangle has a length of \"&J6&\" m and breadth \"&J7&\" m. Calculate the area.\"","v":"2)     A rectangle has a length of 40 m and breadth 10.4 m. Calculate the area."},null,null,null,null,null,null,{"$f":"ROUND(RAND()*(9-2)+2,0)*10","v":40},null,null,null,null,null,null,null,null,null,null,{"$f":"\"2)     A rectangle has a length of \"&AB6&\" m and breadth \"&AB7&\" m. Calculate the area.\"","v":"2)     A rectangle has a length of 70 m and breadth 15.8 m. Calculate the area."},null,null,null,null,null,null,{"$f":"ROUND(RAND()*(9-2)+2,0)*10","v":70},null,null,null,null,null,null,null,null,null,null,{"$f":"\"2)     A rectangle has a length of \"&AT6&\" m and breadth \"&AT7&\" m. Calculate the area.\"","v":"2)     A rectangle has a length of 70 m and breadth 15.7 m. Calculate the area."},null,null,null,null,null,null,{"$f":"ROUND(RAND()*(9-2)+2,0)*10","v":70}]
[null,null,null,null,null,null,null,null,null,{"$f":"ROUND(RAND()*(18-6)+6,1)","v":10.4},null,"2)",null,{"$f":"J6*J7","v":416},null,null,"m2",null,null,null,null,null,null,null,null,null,null,{"$f":"ROUND(RAND()*(18-6)+6,1)","v":15.8},null,"2)",null,{"$f":"AB6*AB7","v":1106},null,null,"m2",null,null,null,null,null,null,null,null,null,null,{"$f":"ROUND(RAND()*(18-6)+6,1)","v":15.7},null,"2)",null,{"$f":"AT6*AT7","v":1099},null,null,"m2"]
[]
[null,null,{"$f":"\"3)  A rectangle has a area of \"&J12&\" square centimetres. The length of the rectangle is \"&J11&\" cm.                 Evaluate the breadth of the rectangle.\"","v":"3)  A rectangle has a area of 98 square centimetres. The length of the rectangle is 14 cm.                 Evaluate the breadth of the rectangle."},null,null,null,null,null,null,null,null,null,null,null,null,null,null,null,null,null,{"$f":"\"3)  A rectangle has a area of \"&AB12&\" square centimetres. The length of the rectangle is \"&AB11&\" cm.                 Evaluate the breadth of the rectangle.\"","v":"3)  A rectangle has a area of 30 square centimetres. The length of the rectangle is 15 cm.                 Evaluate the breadth of the rectangle."},null,null,null,null,null,null,null,null,null,null,null,null,null,null,null,null,null,{"$f":"\"3)  A rectangle has a area of \"&AT12&\" square centimetres. The length of the rectangle is \"&AT11&\" cm.                 Evaluate the breadth of the rectangle.\"","v":"3)  A rectangle has a area of 54 square centimetres. The length of the rectangle is 9 cm.                 Evaluate the breadth of the rectangle."}]
[null,null,null,null,null,null,null,null,null,{"$f":"ROUND(RAND()*(8-2)+2,0)","v":7},null,null,null,null,null,null,null,null,null,null,null,null,null,null,null,null,null,{"$f":"ROUND(RAND()*(8-2)+2,0)","v":2},null,null,null,null,null,null,null,null,null,null,null,null,null,null,null,null,null,{"$f":"ROUND(RAND()*(8-2)+2,0)","v":6}]
[null,null,null,null,null,null,null,null,null,{"$f":"ROUND(RAND()*(15-9)+9,0)","v":14},null,"3)",null,{"$f":"J10","v":7},null,null,"cm",null,null,null,null,null,null,null,null,null,null,{"$f":"ROUND(RAND()*(15-9)+9,0)","v":15},null,"3)",null,{"$f":"AB10","v":2},null,null,"cm",null,null,null,null,null,null,null,null,null,null,{"$f":"ROUND(RAND()*(15-9)+9,0)","v":9},null,"3)",null,{"$f":"AT10","v":6},null,null,"cm"]
[null,null,null,null,null,null,null,null,null,{"$f":"J11*J10","v":98},null,null,null,null,null,null,null,null,null,null,null,null,null,null,null,null,null,{"$f":"AB11*AB10","v":30},null,null,null,null,null,null,null,null,null,null,null,null,null,null,null,null,null,{"$f":"AT11*AT10","v":54}]
[]
[null,null,{"$f":"\"4)   A square has a length of \"&J14&\" m.  Calculate the area.\"","v":"4)   A square has a length of 10 m.  Calculate the area."},null,null,null,null,null,null,{"$f":"ROUND(RAND()*(12-3)+3,0)","v":10},null,null,null,null,null,null,null,null,null,null,{"$f":"\"4)   A square has a length of \"&AB14&\" m.  Calculate the area.\"","v":"4)   A square has a length of 9 m.  Calculate the area."},null,null,null,null,null,null,{"$f":"ROUND(RAND()*(12-3)+3,0)","v":9},null,null,null,null,null,null,null,null,null,null,{"$f":"\"4)   A square has a length of \"&AT14&\" m.  Calculate the area.\"","v":"4)   A square has a length of 4 m.  Calculate the area."},null,null,null,null,null,null,{"$f":"ROUND(RAND()*(12-3)+3,0)","v":4}]
[null,null,null,null,null,null,null,null,null,null,null,"4)",null,{"$f":"J14*J14","v":100},null,null,"m2",null,null,null,null,null,null,null,null,null,null,null,null,"4)",null,{"$f":"AB14*AB14","v":81},null,null,"m2",null,null,null,null,null,null,null,null,null,null,null,null,"4)",null,{"$f":"AT14*AT14","v":16},null,null,"m2"]
[]
[null,null,{"$f":"\"5)  The length of the base of a traingle is \"&J19&\" cm.                                          The height is \"&J18&\" cm.  Calculate the area of the triangle.\"","v":"5)  The length of the base of a traingle is 27 cm.                                          The height is 20 cm.  Calculate the area of the triangle."},null,null,null,null,null,null,null,null,null,null,null,null,null,null,null,null,null,{"$f":"\"5)  The length of the base of a traingle is \"&AB19&\" cm.                                          The height is \"&AB18&\" cm.  Calculate the area of the triangle.\"","v":"5)  The length of the base of a traingle is 21 cm.                                          The height is 12 cm.  Calculate the area of the triangle."},null,null,null,null,null,null,null,null,null,null,null,null,null,null,null,null,null,{"$f":"\"5)  The length of the base of a traingle is \"&AT19&\" cm.                                          The height is \"&AT18&\" cm.  Calculate the area of the triangle.\"","v":"5)  The length of the base of a traingle is 14 cm.                                          The height is 6 cm.  Calculate the area of the triangle."}]
[null,null,null,null,null,null,null,null,null,{"$f":"ROUND(RAND()*(10-1)+1,0)*2","v":20},null,null,null,null,null,null,null,null,null,null,null,null,null,null,null,null,null,{"$f":"ROUND(RAND()*(10-1)+1,0)*2","v":12},null,null,null,null,null,null,null,null,null,null,null,null,null,null,null,null,null,{"$f":"ROUND(RAND()*(10-1)+1,0)*2","v":6}]
[null,null,null,null,null,null,null,null,null,{"$f":"ROUND(RAND()*(40-6)+6,0)","v":27},null,"5)",null,{"$f":"J20","v":270},null,null,"cm2",null,null,null,null,null,null,null,null,null,null,{"$f":"ROUND(RAND()*(40-6)+6,0)","v":21},null,"5)",null,{"$f":"AB20","v":126},null,null,"cm2",null,null,null,null,null,null,null,null,null,null,{"$f":"ROUND(RAND()*(40-6)+6,0)","v":14},null,"5)",null,{"$f":"AT20","v":42},null,null,"cm2"]
[null,null,null,null,null,null,null,null,null,{"$f":"0.5*J19*J18","v":270},null,null,null,null,null,null,null,null,null,null,null,null,null,null,null,null,null,{"$f":"0.5*AB19*AB18","v":126},null,null,null,null,null,null,null,null,null,null,null,null,null,null,null,null,null,{"$f":"0.5*AT19*AT18","v":42}]
[]
[]
[]
[null,null,"Area 4",null,null,null,null,null,null,null,null,"Area 4",null,null,null,null,null,null,null,null,"Area 5",null,null,null,null,null,null,null,null,"Area 5",null,null,null,null,null,null,null,null,"Area 6",null,null,null,null,null,null,null,null,"Area 6"]
[null,null,{"$f":"\"1)     A rectangle has a length of \"&J25&\" cm and breadth \"&J26&\" cm.          Find the area.\"","v":"1)     A rectangle has a length of 30 cm and breadth 7 cm.          Find the area."},null,null,null,null,null,null,{"$f":"ROUND(RAND()*(30-15)+15,0)","v":30},null,null,null,null,null,null,null,null,null,null,{"$f":"\"1)     A rectangle has a length of \"&AB25&\" cm and breadth \"&AB26&\" cm.          Find the area.\"","v":"1)     A rectangle has a length of 17 cm and breadth 3 cm.          Find the area."},null,null,null,null,null,null,{"$f":"ROUND(RAND()*(30-15)+15,0)","v":17},null,null,null,null,null,null,null,null,null,null,{"$f":"\"1)     A rectangle has a length of \"&AT25&\" cm and breadth \"&AT26&\" cm.          Find the area.\"","v":"1)     A rectangle has a length of 29 cm and breadth 5 cm.          Find the area."},null,null,null,null,null,null,{"$f":"ROUND(RAND()*(30-15)+15,0)","v":29}]
[null,null,null,null,null,null,null,null,null,{"$f":"ROUND(RAND()*(14-3)+3,0)","v":7},null,"1)",null,{"$f":"J25*J26","v":210},null,null,"cm2",null,null,null,null,null,null,null,null,null,null,{"$f":"ROUND(RAND()*(14-3)+3,0)","v":3},null,"1)",null,{"$f":"AB25*AB26","v":51},null,null,"cm2",null,null,null,null,null,null,null,null,null,null,{"$f":"ROUND(RAND()*(14-3)+3,0)","v":5},null,"1)",null,{"$f":"AT25*AT26","v":145},null,null,"cm2"]
[]
[null,null,{"$f":"\"2)     A rectangle has a length of \"&J28&\" m and breadth \"&J29&\" m. Calculate the area.\"","v":"2)     A rectangle has a length of 60 m and breadth 17.1 m. Calculate the area."},null,null,null,null,null,null,{"$f":"ROUND(RAND()*(9-2)+2,0)*10","v":60},null,null,null,null,null,null,null,null,null,null,{"$f":"\"2)     A rectangle has a length of \"&AB28&\" m and breadth \"&AB29&\" m. Calculate the area.\"","v":"2)     A rectangle has a length of 70 m and breadth 16 m. Calculate the area."},null,null,null,null,null,null,{"$f":"ROUND(RAND()*(9-2)+2,0)*10","v":70},null,null,null,null,null,null,null,null,null,null,{"$f":"\"2)     A rectangle has a length of \"&AT28&\" m and breadth \"&AT29&\" m. Calculate the area.\"","v":"2)     A rectangle has a length of 40 m and breadth 11.2 m. Calculate the area."},null,null,null,null,null,null,{"$f":"ROUND(RAND()*(9-2)+2,0)*10","v":40}]
[null,null,null,null,null,null,null,null,null,{"$f":"ROUND(RAND()*(18-6)+6,1)","v":17.100000000000001},null,"2)",null,{"$f":"J28*J29","v":1026},null,null,"m2",null,null,null,null,null,null,null,null,null,null,{"$f":"ROUND(RAND()*(18-6)+6,1)","v":16},null,"2)",null,{"$f":"AB28*AB29","v":1120},null,null,"m2",null,null,null,null,null,null,null,null,null,null,{"$f":"ROUND(RAND()*(18-6)+6,1)","v":11.2},null,"2)",null,{"$f":"AT28*AT29","v":448},null,null,"m2"]
[]
[null,null,{"$f":"\"3)  A rectangle has a area of \"&J34&\" square centimetres. The length of the rectangle is \"&J33&\" cm.                 Evaluate the breadth of the rectangle.\"","v":"3)  A rectangle has a area of 45 square centimetres. The length of the rectangle is 15 cm.                 Evaluate the breadth of the rectangle."},null,null,null,null,null,null,null,null,null,null,null,null,null,null,null,null,null,{"$f":"\"3)  A rectangle has a area of \"&AB34&\" square centimetres. The length of the rectangle is \"&AB33&\" cm.                 Evaluate the breadth of the rectangle.\"","v":"3)  A rectangle has a area of 40 square centimetres. The length of the rectangle is 10 cm.                 Evaluate the breadth of the rectangle."},null,null,null,null,null,null,null,null,null,null,null,null,null,null,null,null,null,{"$f":"\"3)  A rectangle has a area of \"&AT34&\" square centimetres. The length of the rectangle is \"&AT33&\" cm.                 Evaluate the breadth of the rectangle.\"","v":"3)  A rectangle has a area of 36 square centimetres. The length of the rectangle is 12 cm.                 Evaluate the breadth of the rectangle."}]
[null,null,null,null,null,null,null,null,null,{"$f":"ROUND(RAND()*(8-2)+2,0)","v":3},null,null,null,null,null,null,null,null,null,null,null,null,null,null,null,null,null,{"$f":"ROUND(RAND()*(8-2)+2,0)","v":4},null,null,null,null,null,null,null,null,null,null,null,null,null,null,null,null,null,{"$f":"ROUND(RAND()*(8-2)+2,0)","v":3}]
[null,null,null,null,null,null,null,null,null,{"$f":"ROUND(RAND()*(15-9)+9,0)","v":15},null,"3)",null,{"$f":"J32","v":3},null,null,"cm",null,null,null,null,null,null,null,null,null,null,{"$f":"ROUND(RAND()*(15-9)+9,0)","v":10},null,"3)",null,{"$f":"AB32","v":4},null,null,"cm",null,null,null,null,null,null,null,null,null,null,{"$f":"ROUND(RAND()*(15-9)+9,0)","v":12},null,"3)",null,{"$f":"AT32","v":3},null,null,"cm"]
[null,null,null,null,null,null,null,null,null,{"$f":"J33*J32","v":45},null,null,null,null,null,null,null,null,null,null,null,null,null,null,null,null,null,{"$f":"AB33*AB32","v":40},null,null,null,null,null,null,null,null,null,null,null,null,null,null,null,null,null,{"$f":"AT33*AT32","v":36}]
[]
[null,null,{"$f":"\"4)   A square has a length of \"&J36&\" m.  Calculate the area.\"","v":"4)   A square has a length of 7 m.  Calculate the area."},null,null,null,null,null,null,{"$f":"ROUND(RAND()*(12-3)+3,0)","v":7},null,null,null,null,null,null,null,null,null,null,{"$f":"\"4)   A square has a length of \"&AB36&\" m.  Calculate the area.\"","v":"4)   A square has a length of 6 m.  Calculate the area."},null,null,null,null,null,null,{"$f":"ROUND(RAND()*(12-3)+3,0)","v":6},null,null,null,null,null,null,null,null,null,null,{"$f":"\"4)   A square has a length of \"&AT36&\" m.  Calculate the area.\"","v":"4)   A square has a length of 10 m.  Calculate the area."},null,null,null,null,null,null,{"$f":"ROUND(RAND()*(12-3)+3,0)","v":10}]
[null,null,null,null,null,null,null,null,null,null,null,"4)",null,{"$f":"J36*J36","v":49},null,null,"m2",null,null,null,null,null,null,null,null,null,null,null,null,"4)",null,{"$f":"AB36*AB36","v":36},null,null,"m2",null,null,null,null,null,null,null,null,null,null,null,null,"4)",null,{"$f":"AT36*AT36","v":100},null,null,"m2"]
[]
[null,null,{"$f":"\"5)  The length of the base of a traingle is \"&J41&\" cm.                                          The height is \"&J40&\" cm.  Calculate the area of the triangle.\"","v":"5)  The length of the base of a traingle is 20 cm.                                          The height is 10 cm.  Calculate the area of the triangle."},null,null,null,null,null,null,null,null,null,null,null,null,null,null,null,null,null,{"$f":"\"5)  The length of the base of a traingle is \"&AB41&\" cm.                                          The height is \"&AB40&\" cm.  Calculate the area of the triangle.\"","v":"5)  The length of the base of a traingle is 29 cm.                                          The height is 2 cm.  Calculate the area of the triangle."},null,null,null,null,null,null,null,null,null,null,null,null,null,null,null,null,null,{"$f":"\"5)  The length of the base of a traingle is \"&AT41&\" cm.                                          The height is \"&AT40&\" cm.  Calculate the area of the triangle.\"","v":"5)  The length of the base of a traingle is 40 cm.                                          The height is 4 cm.  Calculate the area of the triangle."}]
[null,null,null,null,null,null,null,null,null,{"$f":"ROUND(RAND()*(10-1)+1,0)*2","v":10},null,null,null,null,null,null,null,null,null,null,null,null,null,null,null,null,null,{"$f":"ROUND(RAND()*(10-1)+1,0)*2","v":2},null,null,null,null,null,null,null,null,null,null,null,null,null,null,null,null,null,{"$f":"ROUND(RAND()*(10-1)+1,0)*2","v":4}]
[null,null,null,null,null,null,null,null,null,{"$f":"ROUND(RAND()*(40-6)+6,0)","v":20},null,"5)",null,{"$f":"J42","v":100},null,null,"cm2",null,null,null,null,null,null,null,null,null,null,{"$f":"ROUND(RAND()*(40-6)+6,0)","v":29},null,"5)",null,{"$f":"AB42","v":29},null,null,"cm2",null,null,null,null,null,null,null,null,null,null,{"$f":"ROUND(RAND()*(40-6)+6,0)","v":40},null,"5)",null,{"$f":"AT42","v":80},null,null,"cm2"]
[null,null,null,null,null,null,null,null,null,{"$f":"0.5*J41*J40","v":100},null,null,null,null,null,null,null,null,null,null,null,null,null,null,null,null,null,{"$f":"0.5*AB41*AB40","v":29},null,null,null,null,null,null,null,null,null,null,null,null,null,null,null,null,null,{"$f":"0.5*AT41*AT40","v":80}]